Workbook

Sheet CCPIL Template
B1: INSERT COMPANY HEADER & ADDRESS HERE
B8: COMMERCIAL INVOICE & PACKING LIST
B11: Shipper Information | I11: Consignee | N11: Event
B12: Company Name:
B13: Address:
B15: E-mail: | N15: Hall / Stand Number
B16: Exhibition Information
B17: Representitive at Exhibition:
B18: Contact Number: | N18: Invoice No:
B19: Delivery Date to Stand: | I19: UK EORI No:
B20: Delivery Time to Stand: | I20: Shipper EORI No for Return shipping:
B22: The invoiced goods are of origin as stated in the Country of Origin field listed below and are intended for use at the event only. We certify that the information given above is true and correct, and that prices indicated represent the fair market value for the items described herein.
B27: Company Name/Stamp | F27: Name of Signatory in BLOCK LETTERS | K27: Signature
F29: Total Weights: | G29: =SUM(G33:G330238) -> 0 | H29: =SUM(H33:H330238) -> 0 | O29: Total Value: | P29: =SUM(P33:P62235) -> 0
B31: Pieces | C31: Dimensions in cms | F31: CBM | G31: Net Wt KGS | H31: Gross Wt KGS | I31: HS Codes | J31: Description of goods | K31: Quantity | L31: Country of Origin | M31: Currency | N31: CPC | O31: CIF value
C32: Length | D32: Width | E32: Height | O32: Unit value | P32: Total value
F33: =C33*D33*E33/1000000 -> 0 | P33: =SUM(O33*K33) -> 0
F34: =C34*D34*E34/1000000 -> 0 | P34: 0
F35: 0 | P35: 0
F36: 0 | P36: 0
F37: 0 | P37: 0
F38: 0 | P38: 0
F39: 0 | P39: 0
F40: 0 | P40: 0
F41: 0 | P41: 0
F42: 0 | P42: 0
F43: 0 | P43: 0
F44: 0 | P44: 0
F45: 0 | P45: 0
F46: 0 | P46: 0
F47: 0 | P47: 0
F48: 0 | P48: 0
F49: 0 | P49: 0
F50: 0 | P50: 0
F51: 0 | P51: 0
F52: 0 | P52: 0
F53: 0 | P53: 0
F54: 0 | P54: 0
F55: 0 | P55: 0
F56: 0 | P56: 0
F57: 0 | P57: 0
F58: 0 | P58: 0
F59: 0 | P59: 0
F60: 0 | P60: 0
F61: 0 | P61: 0
F62: 0 | P62: 0
F63: 0 | P63: 0
F64: 0 | P64: 0
F65: 0 | P65: 0
F66: 0 | P66: 0
F67: 0 | P67: 0
F68: 0 | P68: 0
F69: 0 | P69: 0
F70: 0 | P70: 0
F71: 0 | P71: 0
F72: 0 | P72: 0
F73: 0 | P73: 0
F74: 0 | P74: 0
F75: 0 | P75: 0
F76: 0 | P76: 0
F77: 0 | P77: 0
F78: 0 | P78: 0
F79: 0 | P79: 0
F80: 0 | P80: 0
F81: 0 | P81: 0
F82: 0 | P82: 0
F83: 0 | P83: 0
F84: 0 | P84: 0
F85: 0 | P85: 0
F86: 0 | P86: 0
F87: 0 | P87: 0
F88: 0 | P88: 0
F89: 0 | P89: 0
F90: 0 | P90: 0
F91: 0 | P91: 0
F92: 0 | P92: 0
F93: 0 | P93: 0
F94: 0 | P94: 0
F95: 0 | P95: 0
F96: 0 | P96: 0
F97: 0 | P97: =SUM(O97*K97) -> 0
F98: 0 | P98: 0
F99: 0 | P99: 0
F100: 0 | P100: 0
F101: 0 | P101: 0
F102: 0 | P102: 0
F103: 0 | P103: 0
F104: 0 | P104: 0
F105: 0 | P105: 0
F106: 0 | P106: 0
F107: 0 | P107: 0
F108: 0 | P108: 0
F109: 0 | P109: 0
F110: 0 | P110: 0
F111: 0 | P111: 0
F112: 0 | P112: 0
F113: 0 | P113: 0
F114: 0 | P114: 0
F115: 0 | P115: 0
F116: 0 | P116: 0
F117: 0 | P117: 0
F118: 0 | P118: 0
F119: 0 | P119: 0
F120: 0 | P120: 0
F121: 0 | P121: 0
F122: 0 | P122: 0
F123: 0 | P123: 0
F124: 0 | P124: 0
F125: 0 | P125: 0
F126: 0 | P126: 0
F127: 0 | P127: 0
F128: 0 | P128: 0
F129: 0 | P129: 0
F130: 0 | P130: 0
F131: 0 | P131: 0
F132: 0 | P132: 0
F133: 0 | P133: 0
F134: 0 | P134: 0
F135: 0 | P135: 0
F136: 0 | P136: 0
F137: 0 | P137: 0
F138: 0 | P138: 0
F139: 0 | P139: 0
F140: 0 | P140: 0
F141: 0 | P141: 0
F142: 0 | P142: 0
F143: 0 | P143: 0
F144: 0 | P144: 0
F145: 0 | P145: 0
F146: 0 | P146: 0
F147: 0 | P147: 0
F148: 0 | P148: 0
F149: 0 | P149: 0
F150: 0 | P150: 0
F151: 0 | P151: 0
F152: 0 | P152: 0
F153: 0 | P153: 0
F154: 0 | P154: 0
F155: 0 | P155: 0
F156: 0 | P156: 0
F157: 0 | P157: 0
F158: 0 | P158: 0
F159: 0 | P159: 0
F160: 0 | P160: 0
F161: 0 | P161: =SUM(O161*K161) -> 0
F162: 0 | P162: 0
F163: 0 | P163: 0
F164: 0 | P164: 0
F165: 0 | P165: 0
F166: 0 | P166: 0
F167: 0 | P167: 0
F168: 0 | P168: 0
F169: 0 | P169: 0
F170: 0 | P170: 0
F171: 0 | P171: 0
F172: 0 | P172: 0
F173: 0 | P173: 0
F174: 0 | P174: 0
F175: 0 | P175: 0
F176: 0 | P176: 0
F177: 0 | P177: 0
F178: 0 | P178: 0
F179: 0 | P179: 0
F180: 0 | P180: 0
F181: 0 | P181: 0
F182: 0 | P182: 0
F183: 0 | P183: 0
F184: 0 | P184: 0
F185: 0 | P185: 0
F186: 0 | P186: 0
F187: 0 | P187: 0
F188: 0 | P188: 0
F189: 0 | P189: 0
F190: 0 | P190: 0
F191: 0 | P191: 0
F192: 0 | P192: 0
F193: 0 | P193: 0
F194: 0 | P194: 0
F195: 0 | P195: 0
F196: 0 | P196: 0
F197: 0 | P197: 0
F198: 0 | P198: 0
F199: 0 | P199: 0
F200: 0 | P200: 0
F201: 0 | P201: 0
F202: 0 | P202: 0
F203: 0 | P203: 0
F204: 0 | P204: 0
F205: 0 | P205: 0
F206: 0 | P206: 0
F207: 0 | P207: 0
F208: 0 | P208: 0
F209: 0 | P209: 0
F210: 0 | P210: 0
F211: 0 | P211: 0
F212: 0 | P212: 0
F213: 0 | P213: 0
F214: 0 | P214: 0
F215: 0 | P215: 0
F216: 0 | P216: 0
... 84 more rows

Sheet CCIPL Backend
B1: INSERT COMPANY HEADER & ADDRESS HERE
B8: COMMERCIAL INVOICE & PACKING LIST
B11: Shipper Information | I11: Consignee | N11: Event
B12: Company Name:
B13: Address:
B15: E-mail: | N15: Hall / Stand Number
B16: Exhibition Information
B17: Representitive at Exhibition:
B18: Contact Number: | N18: Invoice No:
B19: Delivery Date to Stand: | I19: UK EORI No:
B20: Delivery Time to Stand: | I20: Shipper EORI No for Return shipping:
B22: The invoiced goods are of origin as stated in the Country of Origin field listed below and are intended for use at the event only. We certify that the information given above is true and correct, and that prices indicated represent the fair market value for the items described herein.
B27: Company Name/Stamp | F27: Name of Signatory in BLOCK LETTERS | K27: Signature
F29: Total Weights: | G29: =SUM(G33:G330238) -> 2849.81 | H29: =SUM(H33:H330238) -> 3454 | O29: Total Value: | P29: =SUM(P33:P62235) -> 6369.24
B31: Pieces | C31: Dimensions in cms | F31: CBM | G31: Net Wt KGS | H31: Gross Wt KGS | I31: HS Codes | J31: Description of goods | K31: Quantity | L31: Country of Origin | M31: Currency | N31: CPC | O31: CIF value
C32: Length | D32: Width | E32: Height | O32: Unit value | P32: Total value
B33: 1 | C33: 40 | D33: 41 | E33: 40 | F33: =C33*D33*E33/1000000 -> 0.0656 | G33: 18 | H33: 20 | I33: 8211100000 | J33: Kitchen knife set | K33: 16 | L33: China | M33: GBP | N33: Permanent Import - 40 00 000 | O33: 1.5 | P33: =SUM(O33*K33) -> 24
B34: 1 | C34: 40 | D34: 41 | E34: 40 | F34: =C34*D34*E34/1000000 -> 0.0656 | G34: 18 | H34: 20 | I34: 8213000000 | J34: Kitchen scissors | K34: 30 | L34: England | M34: GBP | N34: Permanent Import - 40 00 000 | O34: 0.5 | P34: 15
B35: 1 | C35: 40 | D35: 41 | E35: 40 | F35: 0.0656 | G35: 18 | H35: 20 | I35: 8211910000 | J35: Steak knife | K35: 2 | L35: China | M35: GBP | N35: Permanent Import - 40 00 000 | O35: 1 | P35: 2 | Q35: Validation | T35: Temporary | U35: Permanent | V35: Giveaways
B36: 1 | C36: 40 | D36: 41 | E36: 40 | F36: 0.0656 | G36: 18 | H36: 20 | I36: 8205598000 | J36: Office stapler | K36: 2 | L36: China | M36: GBP | N36: Temporary Import - 53 00 D23 | O36: 0.2 | P36: 0.4 | Q36: Total Value: | R36: =SUM(P33:P1000) -> 6369.24 | S36: =IF(ABS(SUM(Temporary!C2:C1000, Permanent!C2:C1000, Giveaways!C2:C1000) - R36) < 0.01, "Correct", "Incorrect") -> Correct | T36: =SUM(Temporary!C2:C1000) -> 6369.24 | U36: =SUM(Permanent!C2:C1000) -> 0 | V36: =SUM(Giveaways!C2:C1000) -> 0
B37: 1 | C37: 40 | D37: 41 | E37: 40 | F37: 0.0656 | G37: 18 | H37: 20 | I37: 4817200000 | J37: Name card | K37: 500 | L37: China | M37: GBP | N37: Temporary Import - 53 00 D23 | O37: 0.01 | P37: 5 | Q37: Quantity: | R37: =SUM(K33:K1000) -> 7567 | S37: =IF(ABS(SUM(Temporary!G2:G1000, Permanent!G2:G1000, Giveaways!G2:G1000) - R37) < 0.01, "Correct", "Incorrect") -> Correct | T37: =SUM(Temporary!G2:G1000) -> 7567 | U37: =SUM(Permanent!G2:G1000) -> 0 | V37: =SUM(Giveaways!G2:G1000) -> 0
B38: 1 | C38: 40 | D38: 41 | E38: 40 | F38: 0.0656 | G38: 18 | H38: 20 | I38: 4911101000 | J38: Catalogue | K38: 40 | L38: China | M38: GBP | N38: Temporary Import - 53 00 D23 | O38: 0.1 | P38: 4 | Q38: Nett Wgt: | R38: =SUM(G33:G1000) -> 2849.81 | S38: =IF(ABS(SUM(Temporary!H2:H1000, Permanent!H2:H1000, Giveaways!H2:H1000) - R38) < 0.01, "Correct", "Incorrect") -> Correct | T38: =SUM(Temporary!H2:H1000) -> 2849.81 | U38: =SUM(Permanent!H2:H1000) -> 0 | V38: =SUM(Giveaways!H2:H1000) -> 0
B39: 1 | C39: 40 | D39: 41 | E39: 40 | F39: 0.0656 | G39: 18 | H39: 20 | I39: 9608600000 | J39: Pen | K39: 2 | L39: China | M39: GBP | N39: Temporary Import - 53 00 D23 | O39: 0.05 | P39: 0.1 | Q39: Gross Wgt: | R39: =SUM(H33:H1000) -> 3454 | S39: =IF(ABS(SUM(Temporary!I2:I1000, Permanent!I2:I1000, Giveaways!I2:I1000) - R39) < 0.01, "Correct", "Incorrect") -> Correct | T39: =SUM(Temporary!I2:I1000) -> 3454 | U39: =SUM(Permanent!I2:I1000) -> 0 | V39: =SUM(Giveaways!I2:I1000) -> 0
B40: 1 | C40: 40 | D40: 41 | E40: 40 | F40: 0.0656 | G40: 18 | H40: 20 | I40: 4820103000 | J40: Notebooks | K40: 2 | L40: China | M40: GBP | N40: Temporary Import - 53 00 D23 | O40: 0.05 | P40: 0.1
B41: 1 | C41: 40 | D41: 41 | E41: 40 | F41: 0.0656 | G41: 18 | H41: 20 | I41: 8470100000 | J41: Desktop calculator | K41: 2 | L41: China | M41: GBP | N41: Temporary Import - 53 00 D23 | O41: 0.5 | P41: 1
B42: 1 | C42: 40 | D42: 42 | E42: 42 | F42: 0.07056 | G42: 18 | H42: 20 | I42: 8213000000 | J42: Kitchen scissors | K42: 73 | L42: China | M42: GBP | N42: Temporary Import - 53 00 D23 | O42: 0.5 | P42: 36.5
B43: 1 | C43: 40 | D43: 42 | E43: 42 | F43: 0.07056 | G43: 18 | H43: 20 | I43: 8215201000 | J43: Cutlery set | K43: 6 | L43: China | M43: GBP | N43: Temporary Import - 53 00 D23 | O43: 1 | P43: 6
B44: 1 | C44: 40 | D44: 42 | E44: 42 | F44: 0.07056 | G44: 18 | H44: 20 | I44: 8521102000 | J44: Transparent tape | K44: 2 | L44: China | M44: GBP | N44: Temporary Import - 53 00 D23 | O44: 0.1 | P44: 0.2
B45: 1 | C45: 40 | D45: 42 | E45: 42 | F45: 0.07056 | G45: 18 | H45: 20 | I45: 8536691000 | J45: Power strip | K45: 1 | L45: China | M45: GBP | N45: Temporary Import - 53 00 D23 | O45: 0.5 | P45: 0.5
B46: 1 | C46: 40 | D46: 42 | E46: 42 | F46: 0.07056 | G46: 18 | H46: 20 | I46: 3924900090 | J46: Hanger | K46: 180 | L46: China | M46: GBP | N46: Temporary Import - 53 00 D23 | O46: 0.01 | P46: 1.8
B47: 1 | C47: 40 | D47: 45 | E47: 45 | F47: 0.081 | G47: 13 | H47: 16 | I47: 8205510000 | J47: knife sharpener | K47: 29 | L47: England | M47: GBP | N47: Temporary Import - 53 00 D23 | O47: 1 | P47: 29
B48: 1 | C48: 40 | D48: 45 | E48: 45 | F48: 0.081 | G48: 13 | H48: 16 | I48: 8205510000 | J48: sharpening steel | K48: 3 | L48: Spain | M48: GBP | N48: Temporary Import - 53 00 D23 | O48: 1 | P48: 3
B49: 1 | C49: 40 | D49: 45 | E49: 45 | F49: 0.081 | G49: 26.5 | H49: 28.5 | I49: 4911109000 | J49: sample book | K49: 200 | L49: China | M49: GBP | N49: Temporary Import - 53 00 D23 | O49: 0.1 | P49: 20
B50: 1 | C50: 40 | D50: 45 | E50: 45 | F50: 0.081 | G50: 26.5 | H50: 28.5 | I50: 8509800000 | J50: electric knife sharpener | K50: 3 | L50: China | M50: GBP | N50: Temporary Import - 53 00 D23 | O50: 2 | P50: 6
B51: 1 | C51: 40 | D51: 45 | E51: 45 | F51: 0.081 | G51: 26.5 | H51: 28.5 | I51: 8205510000 | J51: knife sharpener | K51: 10 | L51: China | M51: GBP | N51: Temporary Import - 53 00 D23 | O51: 1 | P51: 10
B52: 1 | C52: 40 | D52: 45 | E52: 45 | F52: 0.081 | G52: 26.5 | H52: 28.5 | I52: 6804100000 | J52: Whetstone | K52: 7 | L52: China | M52: GBP | N52: Temporary Import - 53 00 D23 | O52: 2 | P52: 14
B53: 1 | C53: 40 | D53: 39 | E53: 20 | F53: 0.0312 | G53: 18.16 | H53: 19.16 | I53: 8211100000 | J53: Kitchen Knife Set | K53: 3 | L53: China | M53: GBP | N53: Temporary Import - 53 00 D23 | O53: 3 | P53: 9
B54: 1 | C54: 40 | D54: 39 | E54: 20 | F54: 0.0312 | G54: 18.16 | H54: 19.16 | I54: 8205510000 | J54: Bamboo Knife Holder | K54: 8 | L54: China | M54: GBP | N54: Temporary Import - 53 00 D23 | O54: 4 | P54: 32
B55: 1 | C55: 40 | D55: 26.5 | E55: 38.3 | F55: 0.040598 | G55: 11.15 | H55: 12.15 | I55: 8211100000 | J55: Kitchen Knife Set | K55: 6 | L55: China | M55: GBP | N55: Temporary Import - 53 00 D23 | O55: 3 | P55: 18
B56: 1 | C56: 40 | D56: 38 | E56: 63 | F56: 0.09576 | G56: 9 | H56: 11.68 | I56: 9701220000 | J56: CHRISTMAS DECORATION | K56: 23 | L56: China | M56: GBP | N56: Temporary Import - 53 00 D23 | O56: 1.5 | P56: 34.5
B57: 1 | C57: 40 | D57: 34.5 | E57: 50 | F57: 0.069 | G57: 5.2 | H57: 7.38 | I57: 9701220000 | J57: CHRISTMAS DECORATION | K57: 15 | L57: China | M57: GBP | N57: Temporary Import - 53 00 D23 | O57: 1.5 | P57: 22.5
B58: 1 | C58: 40 | D58: 37 | E58: 63 | F58: 0.09324 | G58: 8.3 | H58: 10.3 | I58: 9701220000 | J58: CHRISTMAS DECORATION | K58: 16 | L58: China | M58: GBP | N58: Temporary Import - 53 00 D23 | O58: 1.5 | P58: 24
B59: 1 | C59: 40 | D59: 37 | E59: 53 | F59: 0.07844 | G59: 4 | H59: 5.5 | I59: 9701220000 | J59: CHRISTMAS DECORATION | K59: 7 | L59: China | M59: GBP | N59: Temporary Import - 53 00 D23 | O59: 1.5 | P59: 10.5
B60: 1 | C60: 40 | D60: 38 | E60: 57 | F60: 0.08664 | G60: 9.4 | H60: 11.4 | I60: 9701220000 | J60: CHRISTMAS DECORATION | K60: 12 | L60: China | M60: GBP | N60: Temporary Import - 53 00 D23 | O60: 1.5 | P60: 18
B61: 1 | C61: 40 | D61: 38 | E61: 57 | F61: 0.08664 | G61: 8 | H61: 10 | I61: 9701220000 | J61: CHRISTMAS DECORATION | K61: 12 | L61: China | M61: GBP | N61: Temporary Import - 53 00 D23 | O61: 1.5 | P61: 18
B62: 1 | C62: 40 | D62: 52 | E62: 60 | F62: 0.1248 | G62: 5.2 | H62: 6.7 | I62: 9701220000 | J62: CHRISTMAS DECORATION | K62: 42 | L62: China | M62: GBP | N62: Temporary Import - 53 00 D23 | O62: 1.5 | P62: 63
B63: 1 | C63: 40 | D63: 52 | E63: 60 | F63: 0.1248 | G63: 5.2 | H63: 7.45 | I63: 9701220000 | J63: CHRISTMAS DECORATION | K63: 32 | L63: China | M63: GBP | N63: Temporary Import - 53 00 D23 | O63: 1.5 | P63: 48
B64: 1 | C64: 40 | D64: 33.02 | E64: 63.5 | F64: 0.0838708 | G64: 1.65 | H64: 4.73 | I64: 9505101000 | J64: GR4108JSZ-240W-50L Desc:9ft Pine Garland with cones, berries,50 Lights | K64: 1 | L64: China | M64: GBP | N64: Temporary Import - 53 00 D23 | O64: 5 | P64: 5
B65: 1 | C65: 40 | D65: 33.02 | E65: 63.5 | F65: 0.0838708 | G65: 1.82 | H65: 4.73 | I65: 9505101000 | J65: WB4024JSZ-180W-50L Desc: 24Inch Pine Wreath with cones, berries, 50 Lights | K65: 1 | L65: China | M65: GBP | N65: Temporary Import - 53 00 D23 | O65: 5 | P65: 5
B66: 1 | C66: 50 | D66: 31.75 | E66: 37.465 | F66: 0.0594756875 | G66: 9.53 | H66: 12.1 | I66: 9505101000 | J66: TB4090JSZ-857W-250L Desc: 7.5FT*43" Tree with Cones, Berries, 250 Lights 节节松树 | K66: 1 | L66: China | M66: GBP | N66: Temporary Import - 53 00 D23 | O66: 15 | P66: 15
B67: 1 | C67: 50 | D67: 31.75 | E67: 37.465 | F67: 0.0594756875 | G67: 9.47 | H67: 12.08 | I67: 9505101000 | J67: 7.5FT*43" Frosted Tree with PE, 250 Lights (7.5尺植绒树） | K67: 1 | L67: China | M67: GBP | N67: Temporary Import - 53 00 D23 | O67: 15 | P67: 15
B68: 1 | C68: 63.5 | D68: 33.02 | E68: 63.5 | F68: 0.133144895 | G68: 5.52 | H68: 6.72 | I68: 9505101000 | J68: DD24720SZ-458F-150L Desc: 6FT*24" Frosted Pop Up Tree with cone, berries,150 Lights 伸缩树 | K68: 1 | L68: China | M68: GBP | N68: Temporary Import - 53 00 D23 | O68: 15 | P68: 15
B69: 1 | C69: 50 | D69: 30.48 | E69: 31.75 | F69: 0.048387 | G69: 3.83 | H69: 5.78 | I69: 9505101000 | J69: 6FT*32" Warm Gold Tinsel Tree with 150 Lights （电镀料树） | K69: 1 | L69: China | M69: GBP | N69: Temporary Import - 53 00 D23 | O69: 12 | P69: 12
B70: 1 | C70: 50 | D70: 16.51 | E70: 20.32 | F70: 0.01677416 | G70: 0.94 | H70: 1.44 | I70: 9505101000 | J70: TP4036C4CE-135F 3FT Flocked Pencil tinsel tree with 135tips. Barbie Pink #3尺植绒树芭比粉 | K70: 1 | L70: China | M70: GBP | N70: Temporary Import - 53 00 D23 | O70: 2.6 | P70: 2.6
B71: 1 | C71: 50 | D71: 16.51 | E71: 20.32 | F71: 0.01677416 | G71: 0.94 | H71: 1.44 | I71: 9505101000 | J71: TP4036C4CE-135F 3FT Flocked Pencil tinsel tree with 135tips. Turquoise 3尺植绒树浅蓝 | K71: 1 | L71: China | M71: GBP | N71: Temporary Import - 53 00 D23 | O71: 2.6 | P71: 2.6
B72: 1 | C72: 50 | D72: 16.51 | E72: 20.32 | F72: 0.01677416 | G72: 0.94 | H72: 1.44 | I72: 9505101000 | J72: TP4036C4CE-135F 3FT Flocked Pencil tinsel tree with 135tips. Light Pink 3尺植绒树浅粉 | K72: 1 | L72: China | M72: GBP | N72: Temporary Import - 53 00 D23 | O72: 2.6 | P72: 2.6
B73: 1 | C73: 50 | D73: 16.51 | E73: 20.32 | F73: 0.01677416 | G73: 0.94 | H73: 1.44 | I73: 9505101000 | J73: TP4036C4CE-135F 3FT Flocked Pencil tinsel tree with 135tips. Purple 3尺植绒树浅紫 | K73: 1 | L73: China | M73: GBP | N73: Temporary Import - 53 00 D23 | O73: 2.6 | P73: 2.6
B74: 1 | C74: 50 | D74: 20.32 | E74: 22.86 | F74: 0.02322576 | G74: 1.94 | H74: 2.65 | I74: 9505101000 | J74: TP4072C0YE-260-100L 6ft*18" Warm Gold pencil tree with 100 Lights （6尺暖金铅笔树加灯） | K74: 1 | L74: China | M74: GBP | N74: Temporary Import - 53 00 D23 | O74: 8 | P74: 8
B75: 1 | C75: 50 | D75: 20.32 | E75: 22.86 | F75: 0.02322576 | G75: 1.89 | H75: 2.6 | I75: 9505101000 | J75: TP4072C0YE-260-100L 6ft*18" Silver pencil tree with 100 Lights | K75: 1 | L75: China | M75: GBP | N75: Temporary Import - 53 00 D23 | O75: 8 | P75: 8
B76: 1 | C76: 50 | D76: 31.75 | E76: 37.465 | F76: 0.0594756875 | G76: 2.75 | H76: 8.96 | I76: 9505101000 | J76: TP4084-312-150L 7FT*20" Pencil Tree with 150 Lights | K76: 1 | L76: China | M76: GBP | N76: Temporary Import - 53 00 D23 | O76: 8 | P76: 8
B77: 1 | C77: 50 | D77: 31.75 | E77: 37.465 | F77: 0.0594756875 | G77: 3.51 | H77: 8.96 | I77: 9505101000 | J77: TP4084-312F-150L 7FT*20" Frosted Pencil tree with 150 Lights | K77: 1 | L77: China | M77: GBP | N77: Temporary Import - 53 00 D23 | O77: 8 | P77: 8
B78: 1 | C78: 50 | D78: 31.75 | E78: 20.32 | F78: 0.032258 | G78: 0.8 | H78: 1.3 | I78: 9505101000 | J78: 2ft tinsel warm gold pencil tree | K78: 1 | L78: China | M78: GBP | N78: Temporary Import - 53 00 D23 | O78: 1.5 | P78: 1.5
B79: 1 | C79: 50 | D79: 31.75 | E79: 21.32 | F79: 0.0338455 | G79: 0.8 | H79: 1.3 | I79: 9505101000 | J79: 3ft tinsel warm gold pencil tree | K79: 1 | L79: China | M79: GBP | N79: Temporary Import - 53 00 D23 | O79: 2.2 | P79: 2.2
B80: 1 | C80: 50.8 | D80: 37.465 | E80: 33.02 | F80: 0.06284439044 | G80: 1.77 | H80: 2.82 | I80: 9505101000 | J80: 5FT*15" Silver Pop Up Tree with balls, 100 lights (5尺*15"银色吊吊树） | K80: 1 | L80: China | M80: GBP | N80: Temporary Import - 53 00 D23 | O80: 9.8 | P80: 9.8
B81: 1 | C81: 50.8 | D81: 37.465 | E81: 33.02 | F81: 0.06284439044 | G81: 2.01 | H81: 3.01 | I81: 9505101000 | J81: 5FT*15" Green Pop Up Tree with balls, 100 lights (5尺*15绿色吊吊树） | K81: 1 | L81: China | M81: GBP | N81: Temporary Import - 53 00 D23 | O81: 9.8 | P81: 9.8
B82: 1 | C82: 50.8 | D82: 33.02 | E82: 50.8 | F82: 0.0852127328 | G82: 2.45 | H82: 3.35 | I82: 9505101000 | J82: 6FT*18" Dark Bule pop up tree with 100 balls, 100 Lights | K82: 1 | L82: China | M82: GBP | N82: Temporary Import - 53 00 D23 | O82: 8 | P82: 8
B83: 1 | C83: 50.8 | D83: 33.02 | E83: 50.8 | F83: 0.0852127328 | G83: 2.56 | H83: 3.44 | I83: 9505101000 | J83: 6FT*18" Burgundy pop up tree with 100 balls, 100 Lights | K83: 1 | L83: China | M83: GBP | N83: Temporary Import - 53 00 D23 | O83: 8 | P83: 8
B84: 1 | C84: 50.8 | D84: 33.02 | E84: 50.8 | F84: 0.0852127328 | G84: 2.41 | H84: 3.29 | I84: 9505101000 | J84: 6FT*18" Dark Green pop up tree with 100 balls, 100 Lights | K84: 1 | L84: China | M84: GBP | N84: Temporary Import - 53 00 D23 | O84: 8 | P84: 8
B85: 1 | C85: 63.5 | D85: 33.02 | E85: 63.5 | F85: 0.133144895 | G85: 3.63 | H85: 4.86 | I85: 9505101000 | J85: 6FT*26" Ribbon Pop Up Tree with cones, Bows ,100 Lights | K85: 1 | L85: China | M85: GBP | N85: Temporary Import - 53 00 D23 | O85: 8 | P85: 8
B86: 1 | C86: 50.8 | D86: 37.465 | E86: 33.02 | F86: 0.06284439044 | G86: 1.56 | H86: 2.62 | I86: 9505101000 | J86: 3FT*13" Ribbon Pop Up tree with cones, Bows,35Lights | K86: 1 | L86: China | M86: GBP | N86: Temporary Import - 53 00 D23 | O86: 8.6 | P86: 8.6
B87: 1 | C87: 63.5 | D87: 33.02 | E87: 33.02 | F87: 0.0692353454 | G87: 1.56 | H87: 2.62 | I87: 9505101000 | J87: 24"bucket tree with balls | K87: 1 | L87: China | M87: GBP | N87: Temporary Import - 53 00 D23 | O87: 2.2 | P87: 2.2
B88: 1 | C88: 63.5 | D88: 33.02 | E88: 33.02 | F88: 0.0692353454 | G88: 1.56 | H88: 2.62 | I88: 9505101000 | J88: 18"Bucket tree with balls(green,silver,opal) | K88: 3 | L88: China | M88: GBP | N88: Temporary Import - 53 00 D23 | O88: 1.7 | P88: 5.1
B89: 1 | C89: 63.5 | D89: 33.02 | E89: 33.02 | F89: 0.0692353454 | G89: 1.56 | H89: 2.62 | I89: 9505101000 | J89: 18" small dots pop up tree(silver with multi color dots,dark green,green with multi color dots,opal/red,dark blue,burgundy,warm gold) | K89: 7 | L89: China | M89: GBP | N89: Temporary Import - 53 00 D23 | O89: 1.4 | P89: 9.8
B90: 1 | C90: 50.8 | D90: 33.02 | E90: 33.02 | F90: 0.05538827632 | G90: 2.23 | H90: 3.11 | I90: 9505101000 | J90: Christmas Decoration 3D character( 3D Dog, 3D snowman head,3D Sled,3D snowman,3D Santa,3D Penguin) | K90: 4 | L90: China | M90: GBP | N90: Temporary Import - 53 00 D23 | O90: 1.7 | P90: 6.8
B91: 1 | C91: 50.8 | D91: 33.02 | E91: 33.02 | F91: 0.05538827632 | G91: 2.23 | H91: 3.11 | I91: 9505101000 | J91: #Halloween Decoration 3D character(3D Cat,3D boot) | K91: 4 | L91: China | M91: GBP | N91: Temporary Import - 53 00 D23 | O91: 1.7 | P91: 6.8
B92: 1 | C92: 50.8 | D92: 33.02 | E92: 33.02 | F92: 0.05538827632 | G92: 2.23 | H92: 3.11 | I92: 9505101000 | J92: Christmas Decoration 2D character( 2D Snowman,2D round ornament,2D Tree, 2D candycane) | K92: 4 | L92: China | M92: GBP | N92: Temporary Import - 53 00 D23 | O92: 1.5 | P92: 6
B93: 1 | C93: 50.8 | D93: 33.02 | E93: 33.02 | F93: 0.05538827632 | G93: 2.23 | H93: 3.11 | I93: 9505101000 | J93: Halloween Decoration 3D character(3D Tarantula,3D Cat,3D boot) | K93: 3 | L93: China | M93: GBP | N93: Temporary Import - 53 00 D23 | O93: 1.7 | P93: 5.1
B94: 1 | C94: 36 | D94: 36 | E94: 36 | F94: 0.046656 | G94: 11 | H94: 15 | I94: 6911100090 | J94: PORCELAIN TABLEWARE | K94: 17 | L94: China | M94: GBP | N94: Temporary Import - 53 00 D23 | O94: 2.6 | P94: 44.2
B95: 1 | C95: 36 | D95: 36 | E95: 36 | F95: 0.046656 | G95: 12 | H95: 15 | I95: 6911100090 | J95: PORCELAIN TABLEWARE | K95: 18 | L95: China | M95: GBP | N95: Temporary Import - 53 00 D23 | O95: 2.6 | P95: 46.8
B96: 1 | C96: 55 | D96: 36 | E96: 30 | F96: 0.0594 | G96: 10 | H96: 14 | I96: 6911100090 | J96: PORCELAIN TABLEWARE | K96: 30 | L96: China | M96: GBP | N96: Temporary Import - 53 00 D23 | O96: 2 | P96: 60
B97: 1 | C97: 36 | D97: 36 | E97: 36 | F97: 0.046656 | G97: 9 | H97: 13 | I97: 6911100090 | J97: PORCELAIN TABLEWARE | K97: 17 | L97: China | M97: GBP | N97: Temporary Import - 53 00 D23 | O97: 2.6 | P97: =SUM(O97*K97) -> 44.2
B98: 1 | C98: 55 | D98: 36 | E98: 30 | F98: 0.0594 | G98: 9 | H98: 13.5 | I98: 6911100090 | J98: PORCELAIN TABLEWARE | K98: 30 | L98: China | M98: GBP | N98: Temporary Import - 53 00 D23 | O98: 2 | P98: 60
B99: 1 | C99: 55 | D99: 36 | E99: 30 | F99: 0.0594 | G99: 8.5 | H99: 12.5 | I99: 6911100090 | J99: PORCELAIN TABLEWARE | K99: 28 | L99: China | M99: GBP | N99: Temporary Import - 53 00 D23 | O99: 2 | P99: 56
B100: 1 | C100: 55 | D100: 36 | E100: 30 | F100: 0.0594 | G100: 9 | H100: 13 | I100: 6911100090 | J100: PORCELAIN TABLEWARE | K100: 30 | L100: China | M100: GBP | N100: Temporary Import - 53 00 D23 | O100: 2 | P100: 60
B101: 1 | C101: 55 | D101: 36 | E101: 30 | F101: 0.0594 | G101: 11 | H101: 15 | I101: 6911100090 | J101: PORCELAIN TABLEWARE | K101: 16 | L101: China | M101: GBP | N101: Temporary Import - 53 00 D23 | O101: 2.6 | P101: 41.6
B102: 1 | C102: 55 | D102: 36 | E102: 30 | F102: 0.0594 | G102: 7 | H102: 9.5 | I102: 6911100090 | J102: PORCELAIN TABLEWARE | K102: 23 | L102: China | M102: GBP | N102: Temporary Import - 53 00 D23 | O102: 2 | P102: 46
B103: 1 | C103: 36 | D103: 36 | E103: 36 | F103: 0.046656 | G103: 5 | H103: 7.5 | I103: 6911100090 | J103: PORCELAIN TABLEWARE | K103: 18 | L103: China | M103: GBP | N103: Temporary Import - 53 00 D23 | O103: 2 | P103: 36
B104: 1 | C104: 72 | D104: 56 | E104: 62 | F104: 0.249984 | G104: 5 | H104: 7.5 | I104: 9609901000 | J104: CRAYONS | K104: 20 | L104: China | M104: GBP | N104: Temporary Import - 53 00 D23 | O104: 0.5 | P104: 10
B105: 1 | C105: 72 | D105: 56 | E105: 62 | F105: 0.249984 | G105: 5 | H105: 7.5 | I105: 3407000000 | J105: DOUGH | K105: 20 | L105: China | M105: GBP | N105: Temporary Import - 53 00 D23 | O105: 0.5 | P105: 10
B106: 1 | C106: 72 | D106: 56 | E106: 62 | F106: 0.249984 | G106: 5 | H106: 7.5 | I106: 3213100000 | J106: WATER COLOR | K106: 20 | L106: China | M106: GBP | N106: Temporary Import - 53 00 D23 | O106: 0.5 | P106: 10
B107: 1 | C107: 72 | D107: 56 | E107: 62 | F107: 0.249984 | G107: 5 | H107: 7.5 | I107: 4911109000 | J107: BROCHURE | K107: 29 | L107: China | M107: GBP | N107: Temporary Import - 53 00 D23 | O107: 0.5 | P107: 14.5
B108: 1 | C108: 72 | D108: 56 | E108: 62 | F108: 0.249984 | G108: 5 | H108: 7.5 | I108: 3924100090 | J108: DISPOSABLE TABLEWARE | K108: 215 | L108: China | M108: GBP | N108: Temporary Import - 53 00 D23 | O108: 0.03 | P108: 6.45
B109: 1 | C109: 72 | D109: 56 | E109: 62 | F109: 0.249984 | G109: 5 | H109: 7.5 | I109: 4911109000 | J109: POSTER | K109: 200 | L109: China | M109: GBP | N109: Temporary Import - 53 00 D23 | O109: 0.03 | P109: 6
B110: 1 | C110: 72 | D110: 56 | E110: 62 | F110: 0.249984 | G110: 5 | H110: 7.5 | I110: 3213100000 | J110: WATER COLOR | K110: 35 | L110: China | M110: GBP | N110: Temporary Import - 53 00 D23 | O110: 0.38 | P110: 13.3
B111: 1 | C111: 72 | D111: 56 | E111: 62 | F111: 0.249984 | G111: 5 | H111: 7.5 | I111: 3407000000 | J111: DOUGH | K111: 40 | L111: China | M111: GBP | N111: Temporary Import - 53 00 D23 | O111: 0.38 | P111: 15.2
B112: 1 | C112: 54 | D112: 56 | E112: 62 | F112: 0.187488 | G112: 5 | H112: 7.5 | I112: 3213100000 | J112: WATER COLOR | K112: 22 | L112: China | M112: GBP | N112: Temporary Import - 53 00 D23 | O112: 0.38 | P112: 8.36
B113: 1 | C113: 54 | D113: 56 | E113: 62 | F113: 0.187488 | G113: 5 | H113: 7.5 | I113: 3407000000 | J113: DOUGH | K113: 22 | L113: China | M113: GBP | N113: Temporary Import - 53 00 D23 | O113: 0.3 | P113: 6.6
B114: 1 | C114: 61 | D114: 40 | E114: 50 | F114: 0.122 | G114: 5 | H114: 7.5 | I114: 3926400000 | J114: POLYRESIN CRAFTS | K114: 10 | L114: China | M114: GBP | N114: Temporary Import - 53 00 D23 | O114: 4 | P114: 40
B115: 1 | C115: 61 | D115: 40 | E115: 50 | F115: 0.122 | G115: 5 | H115: 7.5 | I115: 3926400000 | J115: POLYRESIN CRAFTS | K115: 25 | L115: China | M115: GBP | N115: Temporary Import - 53 00 D23 | O115: 2 | P115: 50
B116: 1 | C116: 61 | D116: 40 | E116: 50 | F116: 0.122 | G116: 5 | H116: 7.5 | I116: 3926400000 | J116: POLYRESIN CRAFTS | K116: 30 | L116: China | M116: GBP | N116: Temporary Import - 53 00 D23 | O116: 2 | P116: 60
B117: 1 | C117: 61 | D117: 40 | E117: 50 | F117: 0.122 | G117: 5 | H117: 7.5 | I117: 3926400000 | J117: POLYRESIN CRAFTS | K117: 20 | L117: China | M117: GBP | N117: Temporary Import - 53 00 D23 | O117: 2 | P117: 40
B118: 1 | C118: 61 | D118: 40 | E118: 50 | F118: 0.122 | G118: 5 | H118: 7.5 | I118: 3926400000 | J118: POLYRESIN CRAFTS | K118: 12 | L118: China | M118: GBP | N118: Temporary Import - 53 00 D23 | O118: 4.5 | P118: 54
B119: 1 | C119: 50 | D119: 42 | E119: 35 | F119: 0.0735 | G119: 5 | H119: 7.5 | I119: 3926400000 | J119: POLYRESIN CRAFTS | K119: 1 | L119: China | M119: GBP | N119: Temporary Import - 53 00 D23 | O119: 35 | P119: 35
B120: 1 | C120: 35 | D120: 40 | E120: 50 | F120: 0.07 | G120: 5 | H120: 7.5 | I120: 4201000090 | J120: SHEEP COATS | K120: 3 | L120: China | M120: GBP | N120: Temporary Import - 53 00 D23 | O120: 3 | P120: 9
B121: 1 | C121: 35 | D121: 40 | E121: 50 | F121: 0.07 | G121: 5 | H121: 7.5 | I121: 4201000090 | J121: DOG COATS | K121: 3 | L121: China | M121: GBP | N121: Temporary Import - 53 00 D23 | O121: 2.5 | P121: 7.5
B122: 1 | C122: 35 | D122: 40 | E122: 50 | F122: 0.07 | G122: 5 | H122: 7.5 | I122: 4201000090 | J122: HORSE RUGS | K122: 4 | L122: China | M122: GBP | N122: Temporary Import - 53 00 D23 | O122: 6 | P122: 24
B123: 1 | C123: 35 | D123: 40 | E123: 50 | F123: 0.07 | G123: 5 | H123: 7.5 | I123: 4201000090 | J123: DOG HARNESS | K123: 4 | L123: China | M123: GBP | N123: Temporary Import - 53 00 D23 | O123: 1.5 | P123: 6
B124: 1 | C124: 35 | D124: 40 | E124: 50 | F124: 0.07 | G124: 5 | H124: 7.5 | I124: 4201000090 | J124: DOG LEASH | K124: 5 | L124: China | M124: GBP | N124: Temporary Import - 53 00 D23 | O124: 1 | P124: 5
B125: 1 | C125: 35 | D125: 40 | E125: 50 | F125: 0.07 | G125: 5 | H125: 7.5 | I125: 4911109000 | J125: BOOKLET | K125: 15 | L125: China | M125: GBP | N125: Temporary Import - 53 00 D23 | O125: 0.1 | P125: 1.5
B126: 1 | C126: 35 | D126: 40 | E126: 50 | F126: 0.07 | G126: 5 | H126: 7.5 | I126: 6913100090 | J126: Dog model | K126: 1 | L126: China | M126: GBP | N126: Temporary Import - 53 00 D23 | O126: 5 | P126: 5
B127: 1 | C127: 35 | D127: 40 | E127: 50 | F127: 0.07 | G127: 5 | H127: 7.5 | I127: 4201000090 | J127: SADDLE PAD | K127: 3 | L127: China | M127: GBP | N127: Temporary Import - 53 00 D23 | O127: 3 | P127: 9
B128: 1 | C128: 35 | D128: 40 | E128: 50 | F128: 0.07 | G128: 5 | H128: 7.5 | I128: 4202921100 | J128: POLYESTER BAG | K128: 4 | L128: China | M128: GBP | N128: Temporary Import - 53 00 D23 | O128: 2 | P128: 8
B129: 1 | C129: 35 | D129: 40 | E129: 50 | F129: 0.07 | G129: 5 | H129: 7.5 | I129: 4202921100 | J129: PU BAG | K129: 5 | L129: China | M129: GBP | N129: Temporary Import - 53 00 D23 | O129: 2 | P129: 10
B130: 1 | C130: 35 | D130: 40 | E130: 50 | F130: 0.07 | G130: 5 | H130: 7.5 | I130: 4202921100 | J130: POLYESTER BAG | K130: 10 | L130: China | M130: GBP | N130: Temporary Import - 53 00 D23 | O130: 2 | P130: 20
B131: 1 | C131: 35 | D131: 40 | E131: 50 | F131: 0.07 | G131: 5 | H131: 7.5 | I131: 4202921100 | J131: CANVAS BAG | K131: 4 | L131: China | M131: GBP | N131: Temporary Import - 53 00 D23 | O131: 2 | P131: 8
B132: 1 | C132: 35 | D132: 40 | E132: 50 | F132: 0.07 | G132: 5 | H132: 7.5 | I132: 4202921100 | J132: PVC BAG | K132: 10 | L132: China | M132: GBP | N132: Temporary Import - 53 00 D23 | O132: 2 | P132: 20
B133: 1 | C133: 35 | D133: 40 | E133: 50 | F133: 0.07 | G133: 5 | H133: 7.5 | I133: 4202921100 | J133: POLYESTER BAG | K133: 20 | L133: China | M133: GBP | N133: Temporary Import - 53 00 D23 | O133: 2 | P133: 40
B134: 1 | C134: 35 | D134: 40 | E134: 50 | F134: 0.07 | G134: 5 | H134: 7.5 | I134: 4820103000 | J134: Air bubble pad | K134: 100 | L134: China | M134: GBP | N134: Temporary Import - 53 00 D23 | O134: 0.01 | P134: 1
B135: 1 | C135: 35 | D135: 40 | E135: 50 | F135: 0.07 | G135: 5 | H135: 7.5 | I135: 4911109000 | J135: Promotional posters | K135: 1 | L135: China | M135: GBP | N135: Temporary Import - 53 00 D23 | O135: 0.5 | P135: 0.5
B136: 1 | C136: 35 | D136: 40 | E136: 50 | F136: 0.07 | G136: 5 | H136: 7.5 | I136: 7610901000 | J136: Display Stand | K136: 1 | L136: China | M136: GBP | N136: Temporary Import - 53 00 D23 | O136: 6 | P136: 6
B137: 1 | C137: 35 | D137: 33 | E137: 14 | F137: 0.01617 | G137: 5 | H137: 7.5 | I137: 7610901000 | J137: Partition | K137: 9 | L137: China | M137: GBP | N137: Temporary Import - 53 00 D23 | O137: 1 | P137: 9
B138: 1 | C138: 35 | D138: 32 | E138: 5 | F138: 0.0056 | G138: 5 | H138: 7.4 | I138: 7610901000 | J138: Partition | K138: 3 | L138: China | M138: GBP | N138: Temporary Import - 53 00 D23 | O138: 1 | P138: 3
B139: 1 | C139: 35 | D139: 40 | E139: 50 | F139: 0.07 | G139: 5 | H139: 7.4 | I139: 9403603000 | J139: Roller Pin | K139: 2 | L139: China | M139: GBP | N139: Temporary Import - 53 00 D23 | O139: 0.5 | P139: 1
B140: 1 | C140: 35 | D140: 40 | E140: 50 | F140: 0.07 | G140: 5 | H140: 7.4 | I140: 9403820090 | J140: Bamboo Candy Tray Set | K140: 1 | L140: China | M140: GBP | N140: Temporary Import - 53 00 D23 | O140: 1 | P140: 1
B141: 1 | C141: 35 | D141: 40 | E141: 50 | F141: 0.07 | G141: 5 | H141: 7.4 | I141: 9403820090 | J141: Bamboo Cutting Board | K141: 10 | L141: China | M141: GBP | N141: Temporary Import - 53 00 D23 | O141: 2 | P141: 20
B142: 1 | C142: 35 | D142: 40 | E142: 50 | F142: 0.07 | G142: 5 | H142: 7.4 | I142: 9403820090 | J142: Bamboo Cutting Board Set | K142: 7 | L142: China | M142: GBP | N142: Temporary Import - 53 00 D23 | O142: 2 | P142: 14
B143: 1 | C143: 35 | D143: 40 | E143: 50 | F143: 0.07 | G143: 5 | H143: 7.4 | I143: 9403820090 | J143: Bamboo Utensil Holder | K143: 4 | L143: China | M143: GBP | N143: Temporary Import - 53 00 D23 | O143: 1.5 | P143: 6
B144: 1 | C144: 35 | D144: 40 | E144: 50 | F144: 0.07 | G144: 5 | H144: 7.4 | I144: 9403820090 | J144: Bamboo Utensil Holder Set | K144: 1 | L144: China | M144: GBP | N144: Temporary Import - 53 00 D23 | O144: 1.5 | P144: 1.5
B145: 1 | C145: 35 | D145: 40 | E145: 50 | F145: 0.07 | G145: 5 | H145: 7.4 | I145: 9403820090 | J145: Bamboo Server | K145: 8 | L145: China | M145: GBP | N145: Temporary Import - 53 00 D23 | O145: 1 | P145: 8
B146: 1 | C146: 35 | D146: 40 | E146: 50 | F146: 0.07 | G146: 5 | H146: 7.4 | I146: 9403820090 | J146: Bamboo Tray Set | K146: 1 | L146: China | M146: GBP | N146: Temporary Import - 53 00 D23 | O146: 3.5 | P146: 3.5
B147: 1 | C147: 35 | D147: 40 | E147: 50 | F147: 0.07 | G147: 5 | H147: 7.4 | I147: 9403820090 | J147: Bamboo Bowl | K147: 1 | L147: China | M147: GBP | N147: Temporary Import - 53 00 D23 | O147: 5 | P147: 5
B148: 1 | C148: 35 | D148: 40 | E148: 50 | F148: 0.07 | G148: 5 | H148: 7.4 | I148: 9403820090 | J148: Bamboo Bowl Set | K148: 1 | L148: China | M148: GBP | N148: Temporary Import - 53 00 D23 | O148: 5 | P148: 5
B149: 1 | C149: 35 | D149: 40 | E149: 50 | F149: 0.07 | G149: 5 | H149: 7.4 | I149: 9403820090 | J149: Bamboo Salt Holder Set | K149: 4 | L149: China | M149: GBP | N149: Temporary Import - 53 00 D23 | O149: 0.8 | P149: 3.2
B150: 1 | C150: 35 | D150: 40 | E150: 50 | F150: 0.07 | G150: 5 | H150: 7.4 | I150: 9403603000 | J150: Wooden Tray | K150: 1 | L150: China | M150: GBP | N150: Temporary Import - 53 00 D23 | O150: 3.5 | P150: 3.5
B151: 1 | C151: 35 | D151: 40 | E151: 50 | F151: 0.07 | G151: 5 | H151: 7.4 | I151: 9403820090 | J151: Bamboo Candy Tray Set | K151: 1 | L151: China | M151: GBP | N151: Temporary Import - 53 00 D23 | O151: 1 | P151: 1
B152: 1 | C152: 35 | D152: 40 | E152: 50 | F152: 0.07 | G152: 5 | H152: 7.4 | I152: 9403820090 | J152: Bamboo Cutting Board | K152: 12 | L152: China | M152: GBP | N152: Temporary Import - 53 00 D23 | O152: 2 | P152: 24
B153: 1 | C153: 35 | D153: 40 | E153: 50 | F153: 0.07 | G153: 5 | H153: 7.4 | I153: 9403820090 | J153: Bamboo Cutting Board Set | K153: 3 | L153: China | M153: GBP | N153: Temporary Import - 53 00 D23 | O153: 2 | P153: 6
B154: 1 | C154: 35 | D154: 40 | E154: 50 | F154: 0.07 | G154: 5 | H154: 7.4 | I154: 9403820090 | J154: Bamboo Utensil Holder Set | K154: 1 | L154: China | M154: GBP | N154: Temporary Import - 53 00 D23 | O154: 1.5 | P154: 1.5
B155: 1 | C155: 35 | D155: 40 | E155: 50 | F155: 0.07 | G155: 5 | H155: 7.4 | I155: 9403820090 | J155: Bamboo Server | K155: 2 | L155: China | M155: GBP | N155: Temporary Import - 53 00 D23 | O155: 1 | P155: 2
B156: 1 | C156: 35 | D156: 40 | E156: 50 | F156: 0.07 | G156: 5 | H156: 7.4 | I156: 9403820090 | J156: Cheese Knife | K156: 14 | L156: China | M156: GBP | N156: Temporary Import - 53 00 D23 | O156: 0.5 | P156: 7
B157: 1 | C157: 35 | D157: 40 | E157: 50 | F157: 0.07 | G157: 5 | H157: 7.4 | I157: 9403820090 | J157: Bamboo Candy Tray Set | K157: 1 | L157: China | M157: GBP | N157: Temporary Import - 53 00 D23 | O157: 1 | P157: 1
B158: 1 | C158: 35 | D158: 40 | E158: 50 | F158: 0.07 | G158: 5 | H158: 7.4 | I158: 9403820090 | J158: Bamboo Cutting Board | K158: 9 | L158: China | M158: GBP | N158: Temporary Import - 53 00 D23 | O158: 2 | P158: 18
B159: 1 | C159: 35 | D159: 40 | E159: 50 | F159: 0.07 | G159: 5 | H159: 7.4 | I159: 9403820090 | J159: Bamboo Utensil Holder | K159: 6 | L159: China | M159: GBP | N159: Temporary Import - 53 00 D23 | O159: 1.5 | P159: 9
B160: 1 | C160: 35 | D160: 40 | E160: 50 | F160: 0.07 | G160: 5 | H160: 7.4 | I160: 9403820090 | J160: Bamboo Pepper Grinder | K160: 4 | L160: China | M160: GBP | N160: Temporary Import - 53 00 D23 | O160: 1.5 | P160: 6
B161: 1 | C161: 35 | D161: 40 | E161: 50 | F161: 0.07 | G161: 6.4 | H161: 7.4 | I161: 9403820090 | J161: Bamboo Server | K161: 10 | L161: China | M161: GBP | N161: Temporary Import - 53 00 D23 | O161: 1 | P161: =SUM(O161*K161) -> 10
B162: 1 | C162: 35 | D162: 40 | E162: 50 | F162: 0.07 | G162: 6.4 | H162: 7.4 | I162: 9403820090 | J162: Bamboo Bowl | K162: 2 | L162: China | M162: GBP | N162: Temporary Import - 53 00 D23 | O162: 5 | P162: 10
B163: 1 | C163: 35 | D163: 40 | E163: 50 | F163: 0.07 | G163: 6.4 | H163: 7.4 | I163: 9403603000 | J163: Wooden Pepper Grinder | K163: 3 | L163: China | M163: GBP | N163: Temporary Import - 53 00 D23 | O163: 2 | P163: 6
B164: 1 | C164: 35 | D164: 40 | E164: 50 | F164: 0.07 | G164: 6.4 | H164: 7.4 | I164: 9403820090 | J164: Bamboo Cutting Board | K164: 7 | L164: China | M164: GBP | N164: Temporary Import - 53 00 D23 | O164: 2 | P164: 14
B165: 1 | C165: 35 | D165: 40 | E165: 50 | F165: 0.07 | G165: 6.4 | H165: 7.4 | I165: 9403820090 | J165: Bamboo Utensil Holder | K165: 2 | L165: China | M165: GBP | N165: Temporary Import - 53 00 D23 | O165: 1.5 | P165: 3
B166: 1 | C166: 35 | D166: 40 | E166: 50 | F166: 0.07 | G166: 6.4 | H166: 7.4 | I166: 9403820090 | J166: Bamboo Pepper Grinder | K166: 6 | L166: China | M166: GBP | N166: Temporary Import - 53 00 D23 | O166: 1.5 | P166: 9
B167: 1 | C167: 35 | D167: 40 | E167: 50 | F167: 0.07 | G167: 6.4 | H167: 7.4 | I167: 9403820090 | J167: Bamboo Server | K167: 2 | L167: China | M167: GBP | N167: Temporary Import - 53 00 D23 | O167: 1 | P167: 2
B168: 1 | C168: 35 | D168: 40 | E168: 50 | F168: 0.07 | G168: 6.4 | H168: 7.4 | I168: 9403820090 | J168: Bamboo Tray Set | K168: 1 | L168: China | M168: GBP | N168: Temporary Import - 53 00 D23 | O168: 3.5 | P168: 3.5
B169: 1 | C169: 35 | D169: 40 | E169: 50 | F169: 0.07 | G169: 6.4 | H169: 7.4 | I169: 9403820090 | J169: Bamboo Bowl | K169: 6 | L169: China | M169: GBP | N169: Temporary Import - 53 00 D23 | O169: 5 | P169: 30
B170: 1 | C170: 35 | D170: 40 | E170: 50 | F170: 0.07 | G170: 6.4 | H170: 7.4 | I170: 9403820090 | J170: Bamboo Bowl Set | K170: 1 | L170: China | M170: GBP | N170: Temporary Import - 53 00 D23 | O170: 5 | P170: 5
B171: 1 | C171: 35 | D171: 40 | E171: 50 | F171: 0.07 | G171: 6.4 | H171: 7.4 | I171: 9403603000 | J171: Wooden Coaster Set | K171: 1 | L171: China | M171: GBP | N171: Temporary Import - 53 00 D23 | O171: 2 | P171: 2
B172: 1 | C172: 35 | D172: 40 | E172: 50 | F172: 0.07 | G172: 6.4 | H172: 7.4 | I172: 9403603000 | J172: Wooden Pepper Grinder | K172: 2 | L172: China | M172: GBP | N172: Temporary Import - 53 00 D23 | O172: 2 | P172: 4
B173: 1 | C173: 35 | D173: 40 | E173: 50 | F173: 0.07 | G173: 6.4 | H173: 7.4 | I173: 9403820090 | J173: Bamboo Cutting Board | K173: 8 | L173: China | M173: GBP | N173: Temporary Import - 53 00 D23 | O173: 1 | P173: 8
B174: 1 | C174: 35 | D174: 40 | E174: 50 | F174: 0.07 | G174: 6.4 | H174: 7.4 | I174: 9403820090 | J174: Bamboo Cutting Board Set | K174: 1 | L174: China | M174: GBP | N174: Temporary Import - 53 00 D23 | O174: 2 | P174: 2
B175: 1 | C175: 35 | D175: 40 | E175: 50 | F175: 0.07 | G175: 6.4 | H175: 7.4 | I175: 9403820090 | J175: Bamboo Pepper Grinder | K175: 2 | L175: China | M175: GBP | N175: Temporary Import - 53 00 D23 | O175: 1.5 | P175: 3
B176: 1 | C176: 35 | D176: 40 | E176: 50 | F176: 0.07 | G176: 6.4 | H176: 7.4 | I176: 9403820090 | J176: Bamboo Toast Tongs | K176: 1 | L176: China | M176: GBP | N176: Temporary Import - 53 00 D23 | O176: 0.5 | P176: 0.5
B177: 1 | C177: 35 | D177: 40 | E177: 50 | F177: 0.07 | G177: 6.4 | H177: 7.4 | I177: 9403820090 | J177: Bamboo Tray | K177: 2 | L177: China | M177: GBP | N177: Temporary Import - 53 00 D23 | O177: 3.5 | P177: 7
B178: 1 | C178: 35 | D178: 40 | E178: 50 | F178: 0.07 | G178: 6.4 | H178: 7.4 | I178: 9403820090 | J178: Bamboo Bowl | K178: 6 | L178: China | M178: GBP | N178: Temporary Import - 53 00 D23 | O178: 5 | P178: 30
B179: 1 | C179: 35 | D179: 40 | E179: 50 | F179: 0.07 | G179: 6.4 | H179: 7.4 | I179: 9403603000 | J179: Wooden Utensil Holder | K179: 2 | L179: China | M179: GBP | N179: Temporary Import - 53 00 D23 | O179: 1.8 | P179: 3.6
B180: 1 | C180: 35 | D180: 40 | E180: 50 | F180: 0.07 | G180: 6.4 | H180: 7.4 | I180: 6914400000 | J180: Ceramic Utensil Holder | K180: 1 | L180: China | M180: GBP | N180: Temporary Import - 53 00 D23 | O180: 1.8 | P180: 1.8
B181: 1 | C181: 35 | D181: 40 | E181: 50 | F181: 0.07 | G181: 6.4 | H181: 7.4 | I181: 9403820090 | J181: Bamboo Cutting Board | K181: 10 | L181: China | M181: GBP | N181: Temporary Import - 53 00 D23 | O181: 2 | P181: 20
B182: 1 | C182: 35 | D182: 40 | E182: 50 | F182: 0.07 | G182: 6.4 | H182: 7.4 | I182: 9403820090 | J182: Bamboo Utensil Holder | K182: 1 | L182: China | M182: GBP | N182: Temporary Import - 53 00 D23 | O182: 1.5 | P182: 1.5
B183: 1 | C183: 35 | D183: 40 | E183: 50 | F183: 0.07 | G183: 6.4 | H183: 7.4 | I183: 9403820090 | J183: Bamboo Utensil Holder Set | K183: 1 | L183: China | M183: GBP | N183: Temporary Import - 53 00 D23 | O183: 1.5 | P183: 1.5
B184: 1 | C184: 35 | D184: 40 | E184: 50 | F184: 0.07 | G184: 6.4 | H184: 7.4 | I184: 9403820090 | J184: Bamboo Server | K184: 6 | L184: China | M184: GBP | N184: Temporary Import - 53 00 D23 | O184: 1 | P184: 6
B185: 1 | C185: 35 | D185: 40 | E185: 50 | F185: 0.07 | G185: 6.4 | H185: 7.4 | I185: 9403820090 | J185: Bamboo Tray Set | K185: 2 | L185: China | M185: GBP | N185: Temporary Import - 53 00 D23 | O185: 3.5 | P185: 7
B186: 1 | C186: 35 | D186: 40 | E186: 50 | F186: 0.07 | G186: 6.4 | H186: 7.4 | I186: 9403820090 | J186: Bamboo Bowl | K186: 3 | L186: China | M186: GBP | N186: Temporary Import - 53 00 D23 | O186: 2 | P186: 6
B187: 1 | C187: 35 | D187: 40 | E187: 50 | F187: 0.07 | G187: 6.4 | H187: 7.4 | I187: 9403603000 | J187: Cutting Board Set | K187: 1 | L187: China | M187: GBP | N187: Temporary Import - 53 00 D23 | O187: 2.5 | P187: 2.5
B188: 1 | C188: 35 | D188: 40 | E188: 50 | F188: 0.07 | G188: 6.4 | H188: 7.4 | I188: 9403603000 | J188: Wooden Cutting Board | K188: 2 | L188: China | M188: GBP | N188: Temporary Import - 53 00 D23 | O188: 1.8 | P188: 3.6
B189: 1 | C189: 35 | D189: 40 | E189: 50 | F189: 0.07 | G189: 6.4 | H189: 7.4 | I189: 9403603000 | J189: Wooden Pepper Grinder | K189: 4 | L189: China | M189: GBP | N189: Temporary Import - 53 00 D23 | O189: 2 | P189: 8
B190: 1 | C190: 35 | D190: 40 | E190: 50 | F190: 0.07 | G190: 6.4 | H190: 7.4 | I190: 9403603000 | J190: Wooden Tray | K190: 3 | L190: China | M190: GBP | N190: Temporary Import - 53 00 D23 | O190: 3.5 | P190: 10.5
B191: 1 | C191: 35 | D191: 40 | E191: 50 | F191: 0.07 | G191: 6.4 | H191: 7.4 | I191: 9403603000 | J191: Wooden Pepper Grinder Set | K191: 1 | L191: China | M191: GBP | N191: Temporary Import - 53 00 D23 | O191: 2.5 | P191: 2.5
B192: 1 | C192: 35 | D192: 40 | E192: 50 | F192: 0.07 | G192: 6.4 | H192: 7.4 | I192: 9403820090 | J192: Bamboo Cutting Board | K192: 10 | L192: China | M192: GBP | N192: Temporary Import - 53 00 D23 | O192: 2 | P192: 20
B193: 1 | C193: 35 | D193: 40 | E193: 50 | F193: 0.07 | G193: 6.4 | H193: 7.4 | I193: 9403820090 | J193: Bamboo Cutting Board Set | K193: 3 | L193: China | M193: GBP | N193: Temporary Import - 53 00 D23 | O193: 2 | P193: 6
B194: 1 | C194: 35 | D194: 40 | E194: 50 | F194: 0.07 | G194: 6.4 | H194: 7.4 | I194: 9403820090 | J194: Bamboo Tray | K194: 1 | L194: China | M194: GBP | N194: Temporary Import - 53 00 D23 | O194: 3.5 | P194: 3.5
B195: 1 | C195: 35 | D195: 40 | E195: 50 | F195: 0.07 | G195: 6.4 | H195: 7.4 | I195: 9403820090 | J195: Bamboo Tray Set | K195: 1 | L195: China | M195: GBP | N195: Temporary Import - 53 00 D23 | O195: 3.5 | P195: 3.5
B196: 1 | C196: 35 | D196: 40 | E196: 50 | F196: 0.07 | G196: 6.4 | H196: 7.4 | I196: 9403603000 | J196: Wooden Cutting Board | K196: 1 | L196: China | M196: GBP | N196: Temporary Import - 53 00 D23 | O196: 1.8 | P196: 1.8
B197: 1 | C197: 35 | D197: 40 | E197: 50 | F197: 0.07 | G197: 6.4 | H197: 7.4 | I197: 9403603000 | J197: Wooden Turner | K197: 1 | L197: China | M197: GBP | N197: Temporary Import - 53 00 D23 | O197: 1.5 | P197: 1.5
B198: 1 | C198: 35 | D198: 40 | E198: 50 | F198: 0.07 | G198: 6.4 | H198: 7.4 | I198: 9403603000 | J198: Wooden Pepper Grinder | K198: 2 | L198: China | M198: GBP | N198: Temporary Import - 53 00 D23 | O198: 2 | P198: 4
B199: 1 | C199: 35 | D199: 40 | E199: 50 | F199: 0.07 | G199: 6.4 | H199: 7.4 | I199: 9403603000 | J199: Wooden Server | K199: 12 | L199: China | M199: GBP | N199: Temporary Import - 53 00 D23 | O199: 1.5 | P199: 18
B200: 1 | C200: 35 | D200: 40 | E200: 50 | F200: 0.07 | G200: 6.4 | H200: 7.4 | I200: 9403603000 | J200: Wooden Tray | K200: 4 | L200: China | M200: GBP | N200: Temporary Import - 53 00 D23 | O200: 3.5 | P200: 14
B201: 1 | C201: 35 | D201: 40 | E201: 50 | F201: 0.07 | G201: 6.4 | H201: 7.4 | I201: 9403603000 | J201: Wooden Candy Stand | K201: 1 | L201: China | M201: GBP | N201: Temporary Import - 53 00 D23 | O201: 1 | P201: 1
B202: 1 | C202: 35 | D202: 40 | E202: 50 | F202: 0.07 | G202: 6.4 | H202: 7.4 | I202: 9403603000 | J202: Bamboo Cutting Board | K202: 4 | L202: China | M202: GBP | N202: Temporary Import - 53 00 D23 | O202: 2 | P202: 8
B203: 1 | C203: 35 | D203: 40 | E203: 50 | F203: 0.07 | G203: 6.4 | H203: 7.4 | I203: 9403820090 | J203: Bamboo Cutting Board Set | K203: 1 | L203: China | M203: GBP | N203: Temporary Import - 53 00 D23 | O203: 2 | P203: 2
B204: 1 | C204: 35 | D204: 40 | E204: 50 | F204: 0.07 | G204: 6.4 | H204: 7.4 | I204: 9403820090 | J204: Bamboo Pepper Grinder | K204: 2 | L204: China | M204: GBP | N204: Temporary Import - 53 00 D23 | O204: 1.5 | P204: 3
B205: 1 | C205: 35 | D205: 40 | E205: 50 | F205: 0.07 | G205: 6.4 | H205: 7.4 | I205: 9403820090 | J205: Bamboo Skewers | K205: 4 | L205: China | M205: GBP | N205: Temporary Import - 53 00 D23 | O205: 0.5 | P205: 2
B206: 1 | C206: 35 | D206: 40 | E206: 50 | F206: 0.07 | G206: 6.4 | H206: 7.4 | I206: 9403820090 | J206: Bamboo Tray Set | K206: 1 | L206: China | M206: GBP | N206: Temporary Import - 53 00 D23 | O206: 3.5 | P206: 3.5
B207: 1 | C207: 35 | D207: 40 | E207: 50 | F207: 0.07 | G207: 6.4 | H207: 7.4 | I207: 9403603000 | J207: Roller Pin | K207: 4 | L207: China | M207: GBP | N207: Temporary Import - 53 00 D23 | O207: 0.5 | P207: 2
B208: 1 | C208: 35 | D208: 40 | E208: 50 | F208: 0.07 | G208: 6.4 | H208: 7.4 | I208: 9403603000 | J208: Wooden Turner | K208: 13 | L208: China | M208: GBP | N208: Temporary Import - 53 00 D23 | O208: 1.5 | P208: 19.5
B209: 1 | C209: 35 | D209: 40 | E209: 50 | F209: 0.07 | G209: 6.4 | H209: 7.4 | I209: 9403603000 | J209: Wooden Pepper Grinder | K209: 2 | L209: China | M209: GBP | N209: Temporary Import - 53 00 D23 | O209: 2 | P209: 4
B210: 1 | C210: 35 | D210: 40 | E210: 50 | F210: 0.07 | G210: 6.4 | H210: 7.4 | I210: 9403603000 | J210: Wooden Server | K210: 2 | L210: China | M210: GBP | N210: Temporary Import - 53 00 D23 | O210: 1.5 | P210: 3
B211: 1 | C211: 35 | D211: 40 | E211: 50 | F211: 0.07 | G211: 6.4 | H211: 7.4 | I211: 9403820090 | J211: Bamboo Meat Tenderizer | K211: 1 | L211: China | M211: GBP | N211: Temporary Import - 53 00 D23 | O211: 0.8 | P211: 0.8
B212: 1 | C212: 35 | D212: 40 | E212: 50 | F212: 0.07 | G212: 6.4 | H212: 7.4 | I212: 9403820090 | J212: Bamboo Coaster Set | K212: 1 | L212: China | M212: GBP | N212: Temporary Import - 53 00 D23 | O212: 1.5 | P212: 1.5
B213: 1 | C213: 35 | D213: 40 | E213: 50 | F213: 0.07 | G213: 6.4 | H213: 7.4 | I213: 9403820090 | J213: Bamboo Pepper Grinder | K213: 1 | L213: China | M213: GBP | N213: Temporary Import - 53 00 D23 | O213: 1.5 | P213: 1.5
B214: 1 | C214: 35 | D214: 40 | E214: 50 | F214: 0.07 | G214: 6.4 | H214: 7.4 | I214: 9403820090 | J214: Bamboo Server | K214: 3 | L214: China | M214: GBP | N214: Temporary Import - 53 00 D23 | O214: 1 | P214: 3
B215: 1 | C215: 35 | D215: 40 | E215: 50 | F215: 0.07 | G215: 6.4 | H215: 7.4 | I215: 9403820090 | J215: Bamboo Tray | K215: 1 | L215: China | M215: GBP | N215: Temporary Import - 53 00 D23 | O215: 3.5 | P215: 3.5
B216: 1 | C216: 35 | D216: 40 | E216: 50 | F216: 0.07 | G216: 6.4 | H216: 7.4 | I216: 9403820090 | J216: Bamboo Tray Set | K216: 1 | L216: China | M216: GBP | N216: Temporary Import - 53 00 D23 | O216: 3.5 | P216: 3.5
... 193 more rows

Sheet Temporary
A1: HS Code | B1: CUR | C1: Total Value | D1: CPC | E1: Description | F1: COO | G1: QTY | H1: NETT | I1: GROSS
A2: 8211100000 | B2: GBP | C2: 24 | D2: PERMANENT IMPORT - 40 00 000 | E2: Kitchen knife set | F2: China | G2: 16 | H2: 18 | I2: 20
A3: 8213000000 | B3: GBP | C3: 15 | D3: PERMANENT IMPORT - 40 00 000 | E3: Kitchen scissors | F3: England | G3: 30 | H3: 18 | I3: 20
A4: 8211910000 | B4: GBP | C4: 2 | D4: PERMANENT IMPORT - 40 00 000 | E4: Steak knife | F4: China | G4: 2 | H4: 18 | I4: 20
A5: 8205598000 | B5: GBP | C5: 1.4 | D5: TEMPORARY IMPORT - 53 00 D23 | E5: Office stapler | F5: China | G5: 4 | H5: 27.5 | I5: 31
A6: 4817200000 | B6: GBP | C6: 5.02 | D6: TEMPORARY IMPORT - 53 00 D23 | E6: Name card | F6: China | G6: 700 | H6: 18.5 | I6: 21
A7: 4911101000 | B7: GBP | C7: 6.5 | D7: TEMPORARY IMPORT - 53 00 D23 | E7: Catalogue | F7: China | G7: 90 | H7: 26.1 | I7: 29.1
A8: 9608600000 | B8: GBP | C8: 0.1 | D8: TEMPORARY IMPORT - 53 00 D23 | E8: Pen | F8: China | G8: 2 | H8: 18 | I8: 20
A9: 4820103000 | B9: GBP | C9: 1.1 | D9: TEMPORARY IMPORT - 53 00 D23 | E9: Notebooks | F9: China | G9: 102 | H9: 23 | I9: 27.5
A10: 8470100000 | B10: GBP | C10: 1 | D10: TEMPORARY IMPORT - 53 00 D23 | E10: Desktop calculator | F10: China | G10: 2 | H10: 18 | I10: 20
A11: 8213000000 | B11: GBP | C11: 36.5 | D11: TEMPORARY IMPORT - 53 00 D23 | E11: Kitchen scissors | F11: China | G11: 73 | H11: 18 | I11: 20
A12: 8215201000 | B12: GBP | C12: 6 | D12: TEMPORARY IMPORT - 53 00 D23 | E12: Cutlery set | F12: China | G12: 6 | H12: 18 | I12: 20
A13: 8521102000 | B13: GBP | C13: 0.2 | D13: TEMPORARY IMPORT - 53 00 D23 | E13: Transparent tape | F13: China | G13: 2 | H13: 18 | I13: 20
A14: 8536691000 | B14: GBP | C14: 6.4 | D14: TEMPORARY IMPORT - 53 00 D23 | E14: Power strip | F14: China | G14: 11 | H14: 36 | I14: 40
A15: 3924900090 | B15: GBP | C15: 23.58 | D15: TEMPORARY IMPORT - 53 00 D23 | E15: Hanger | F15: China | G15: 183 | H15: 33.02 | I15: 37.52
A16: 8205510000 | B16: GBP | C16: 29 | D16: TEMPORARY IMPORT - 53 00 D23 | E16: knife sharpener | F16: England | G16: 29 | H16: 13 | I16: 16
A17: 8205510000 | B17: GBP | C17: 3 | D17: TEMPORARY IMPORT - 53 00 D23 | E17: sharpening steel | F17: Spain | G17: 3 | H17: 13 | I17: 16
A18: 4911109000 | B18: GBP | C18: 82.5 | D18: TEMPORARY IMPORT - 53 00 D23 | E18: sample book | F18: China | G18: 1015 | H18: 76.19 | I18: 94.62
A19: 8509800000 | B19: GBP | C19: 6 | D19: TEMPORARY IMPORT - 53 00 D23 | E19: electric knife sharpener | F19: China | G19: 3 | H19: 26.5 | I19: 28.5
A20: 8205510000 | B20: GBP | C20: 42 | D20: TEMPORARY IMPORT - 53 00 D23 | E20: knife sharpener | F20: China | G20: 18 | H20: 44.66 | I20: 47.66
A21: 6804100000 | B21: GBP | C21: 14 | D21: TEMPORARY IMPORT - 53 00 D23 | E21: Whetstone | F21: China | G21: 7 | H21: 26.5 | I21: 28.5
A22: 8211100000 | B22: GBP | C22: 27 | D22: TEMPORARY IMPORT - 53 00 D23 | E22: Kitchen Knife Set | F22: China | G22: 9 | H22: 29.31 | I22: 31.31
A23: 9701220000 | B23: GBP | C23: 238.5 | D23: TEMPORARY IMPORT - 53 00 D23 | E23: CHRISTMAS DECORATION | F23: China | G23: 159 | H23: 54.3 | I23: 70.41
A24: 9505101000 | B24: GBP | C24: 215.1 | D24: TEMPORARY IMPORT - 53 00 D23 | E24: GR4108JSZ-240W-50L Desc:9ft Pine Garland with cones, berries,50 Lights | F24: China | G24: 49 | H24: 77.26 | I24: 121.36
A25: 6911100090 | B25: GBP | C25: 494.8 | D25: TEMPORARY IMPORT - 53 00 D23 | E25: PORCELAIN TABLEWARE | F25: China | G25: 227 | H25: 91.5 | I25: 128
A26: 9609901000 | B26: GBP | C26: 10 | D26: TEMPORARY IMPORT - 53 00 D23 | E26: CRAYONS | F26: China | G26: 20 | H26: 5 | I26: 7.5
A27: 3407000000 | B27: GBP | C27: 31.8 | D27: TEMPORARY IMPORT - 53 00 D23 | E27: DOUGH | F27: China | G27: 82 | H27: 15 | I27: 22.5
A28: 3213100000 | B28: GBP | C28: 31.66 | D28: TEMPORARY IMPORT - 53 00 D23 | E28: WATER COLOR | F28: China | G28: 77 | H28: 15 | I28: 22.5
A29: 3924100090 | B29: GBP | C29: 6.45 | D29: TEMPORARY IMPORT - 53 00 D23 | E29: DISPOSABLE TABLEWARE | F29: China | G29: 215 | H29: 5 | I29: 7.5
A30: 3926400000 | B30: GBP | C30: 429 | D30: TEMPORARY IMPORT - 53 00 D23 | E30: POLYRESIN CRAFTS | F30: China | G30: 158 | H30: 43.84 | I30: 61.84
A31: 4201000090 | B31: GBP | C31: 60.5 | D31: TEMPORARY IMPORT - 53 00 D23 | E31: SHEEP COATS | F31: China | G31: 22 | H31: 30 | I31: 45
A32: 6913100090 | B32: GBP | C32: 5 | D32: TEMPORARY IMPORT - 53 00 D23 | E32: Dog model | F32: China | G32: 1 | H32: 5 | I32: 7.5
A33: 4202921100 | B33: GBP | C33: 106 | D33: TEMPORARY IMPORT - 53 00 D23 | E33: POLYESTER BAG | F33: China | G33: 53 | H33: 30 | I33: 45
A34: 7610901000 | B34: GBP | C34: 18 | D34: TEMPORARY IMPORT - 53 00 D23 | E34: Display Stand | F34: China | G34: 13 | H34: 15 | I34: 22.4
A35: 9403603000 | B35: GBP | C35: 133 | D35: TEMPORARY IMPORT - 53 00 D23 | E35: Roller Pin | F35: China | G35: 73 | H35: 150.8 | I35: 177.6
A36: 9403820090 | B36: GBP | C36: 421.5 | D36: TEMPORARY IMPORT - 53 00 D23 | E36: Bamboo Candy Tray Set | F36: China | G36: 221 | H36: 368.8 | I36: 458.8
A37: 6914400000 | B37: GBP | C37: 1.8 | D37: TEMPORARY IMPORT - 53 00 D23 | E37: Ceramic Utensil Holder | F37: China | G37: 1 | H37: 6.4 | I37: 7.4
A38: 8302500000 | B38: GBP | C38: 114 | D38: TEMPORARY IMPORT - 53 00 D23 | E38: Hanging Hooks | F38: China | G38: 94 | H38: 26.6 | I38: 30.9
A39: 3906903000 | B39: GBP | C39: 43.5 | D39: TEMPORARY IMPORT - 53 00 D23 | E39: Acrylic Stand | F39: China | G39: 87 | H39: 12.8 | I39: 14.8
A40: 4819500000 | B40: GBP | C40: 4 | D40: TEMPORARY IMPORT - 53 00 D23 | E40: Color Box | F40: China | G40: 10 | H40: 5.9 | I40: 6.6
A41: 5810109090 | B41: GBP | C41: 20 | D41: TEMPORARY IMPORT - 53 00 D23 | E41: EMBROIDERY PATCH | F41: China | G41: 40 | H41: 5.9 | I41: 6.6
A42: 7118100000 | B42: GBP | C42: 107.9 | D42: TEMPORARY IMPORT - 53 00 D23 | E42: METAL MEDAL | F42: China | G42: 303 | H42: 37.6 | I42: 42.1
A43: 6913901090 | B43: GBP | C43: 47.9 | D43: TEMPORARY IMPORT - 53 00 D23 | E43: PVC BAG TAG | F43: China | G43: 127 | H43: 36.1 | I43: 40.5
A44: 7117190010 | B44: GBP | C44: 69.4 | D44: TEMPORARY IMPORT - 53 00 D23 | E44: METAL LAPEL PIN | F44: China | G44: 484 | H44: 41.3 | I44: 46.2
A45: 7117190090 | B45: GBP | C45: 53.5 | D45: TEMPORARY IMPORT - 53 00 D23 | E45: METAL BOTTLE OPENER | F45: China | G45: 107 | H45: 24.3 | I45: 27.3
A46: 5806329000 | B46: GBP | C46: 3.6 | D46: TEMPORARY IMPORT - 53 00 D23 | E46: POLYESTER LANYARD | F46: China | G46: 18 | H46: 8.1 | I46: 9.1
A47: 4905900090 | B47: GBP | C47: 30 | D47: TEMPORARY IMPORT - 53 00 D23 | E47: COLOR CHART | F47: China | G47: 30 | H47: 8.1 | I47: 9.1
A48: 7616999001 | B48: GBP | C48: 2.4 | D48: TEMPORARY IMPORT - 53 00 D23 | E48: CARABINER | F48: China | G48: 24 | H48: 8.1 | I48: 9.1
A49: 8308100000 | B49: GBP | C49: 3 | D49: TEMPORARY IMPORT - 53 00 D23 | E49: HOOKS | F49: China | G49: 30 | H49: 8.1 | I49: 9.1
A50: 7315810000 | B50: GBP | C50: 24 | D50: TEMPORARY IMPORT - 53 00 D23 | E50: IRAN CHAIN | F50: China | G50: 24 | H50: 8.1 | I50: 9.1
A51: 4819200000 | B51: GBP | C51: 24.75 | D51: TEMPORARY IMPORT - 53 00 D23 | E51: disposable paper bento | F51: China | G51: 325 | H51: 10.2 | I51: 14.1
A52: 9506919000 | B52: GBP | C52: 55 | D52: TEMPORARY IMPORT - 53 00 D23 | E52: TPE YOGA MAT | F52: China | G52: 7 | H52: 6.8 | I52: 9.4
A53: 3919108010 | B53: GBP | C53: 47.43 | D53: TEMPORARY IMPORT - 53 00 D23 | E53: PVC CLING FILM | F53: China | G53: 17 | H53: 27.19 | I53: 31.1
A54: 9619003000 | B54: GBP | C54: 8 | D54: TEMPORARY IMPORT - 53 00 D23 | E54: ABSORBENT PAD | F54: China | G54: 5 | H54: 10.17 | I54: 11.6
A55: 4202921900 | B55: GBP | C55: 163 | D55: TEMPORARY IMPORT - 53 00 D23 | E55: Folding storage box | F55: China | G55: 48 | H55: 49.08 | I55: 56
A56: 9404401000 | B56: GBP | C56: 86 | D56: TEMPORARY IMPORT - 53 00 D23 | E56: MICROFIBER QUILT | F56: China | G56: 16 | H56: 25.25 | I56: 33.14
A57: 9404901090 | B57: GBP | C57: 48 | D57: TEMPORARY IMPORT - 53 00 D23 | E57: DUVET | F57: China | G57: 9 | H57: 17.18 | I57: 20.18
A58: 9404909000 | B58: GBP | C58: 205.7 | D58: TEMPORARY IMPORT - 53 00 D23 | E58: MATTRESS TOPPER | F58: China | G58: 99 | H58: 57.22 | I58: 69.22
A59: 9404901000 | B59: GBP | C59: 65 | D59: TEMPORARY IMPORT - 53 00 D23 | E59: FEATHER PILLOW | F59: China | G59: 13 | H59: 13.84 | I59: 16.84
A60: 9505900000 | B60: GBP | C60: 206.42 | D60: TEMPORARY IMPORT - 53 00 D23 | E60: CLASSIC LANTERN | F60: China | G60: 283 | H60: 110.72 | I60: 134.72
A61: 4820100000 | B61: GBP | C61: 2 | D61: TEMPORARY IMPORT - 53 00 D23 | E61: NOTETBOOK | F61: China | G61: 1 | H61: 6.92 | I61: 8.42
A62: 7013990090 | B62: GBP | C62: 184.45 | D62: TEMPORARY IMPORT - 53 00 D23 | E62: GLASS VASE & CANDLE HOLDER | F62: China | G62: 217 | H62: 76.12 | I62: 92.62
A63: 8541410000 | B63: GBP | C63: 46.8 | D63: TEMPORARY IMPORT - 53 00 D23 | E63: GLASS LED | F63: China | G63: 39 | H63: 13.84 | I63: 16.84
A64: 4819600000 | B64: GBP | C64: 34 | D64: TEMPORARY IMPORT - 53 00 D23 | E64: storage box | F64: China | G64: 34 | H64: 6.92 | I64: 8.42
A65: 7323990010 | B65: GBP | C65: 12 | D65: TEMPORARY IMPORT - 53 00 D23 | E65: Laundry basket | F65: China | G65: 1 | H65: 6.92 | I65: 8.42
A66: 9031200000 | B66: GBP | C66: 8 | D66: TEMPORARY IMPORT - 53 00 D23 | E66: Storage Bench | F66: China | G66: 1 | H66: 6.92 | I66: 8.42
A67: 8422300000 | B67: GBP | C67: 276 | D67: TEMPORARY IMPORT - 53 00 D23 | E67: stalinelss steel water bottle | F67: China | G67: 138 | H67: 34.6 | I67: 42.1
A68: 8424300100 | B68: GBP | C68: 67 | D68: TEMPORARY IMPORT - 53 00 D23 | E68: Steam Cleaner | F68: China | G68: 9 | H68: 13.84 | I68: 16.84
A69: 8516400000 | B69: GBP | C69: 24 | D69: TEMPORARY IMPORT - 53 00 D23 | E69: Garment Steamer | F69: China | G69: 4 | H69: 6.92 | I69: 8.42
A70: 8508110000 | B70: GBP | C70: 18 | D70: TEMPORARY IMPORT - 53 00 D23 | E70: Window Cleaner | F70: China | G70: 2 | H70: 6.92 | I70: 8.42
A71: 8516320000 | B71: GBP | C71: 80 | D71: TEMPORARY IMPORT - 53 00 D23 | E71: Hair Dryer | F71: China | G71: 16 | H71: 13.84 | I71: 16.84
A72: 9405310000 | B72: GBP | C72: 312.2 | D72: TEMPORARY IMPORT - 53 00 D23 | E72: Christmas lights | F72: China | G72: 316 | H72: 20.76 | I72: 25.26
A73: 3923509000 | B73: GBP | C73: 722 | D73: TEMPORARY IMPORT - 53 00 D23 | E73: DOOR STOPPER | F73: China | G73: 361 | H73: 89.96 | I73: 109.46
A74: 9503001000 | B74: GBP | C74: 111 | D74: TEMPORARY IMPORT - 53 00 D23 | E74: Walking bike | F74: China | G74: 21 | H74: 135 | I74: 150
A75: 8712003090 | B75: GBP | C75: 8 | D75: TEMPORARY IMPORT - 53 00 D23 | E75: kids bicycle | F75: China | G75: 1 | H75: 45 | I75: 50
A76: 4820101000 | B76: GBP | C76: 0.01 | D76: TEMPORARY IMPORT - 53 00 D23 | E76: book | F76: China | G76: 1 | H76: 0.5 | I76: 1
A77: 8305200000 | B77: GBP | C77: 0.02 | D77: TEMPORARY IMPORT - 53 00 D23 | E77: staple | F77: China | G77: 1 | H77: 0.5 | I77: 1
A78: 8211920000 | B78: GBP | C78: 0.5 | D78: TEMPORARY IMPORT - 53 00 D23 | E78: blade | F78: China | G78: 1 | H78: 0.5 | I78: 1
A79: 8414202000 | B79: GBP | C79: 1 | D79: TEMPORARY IMPORT - 53 00 D23 | E79: pump | F79: China | G79: 1 | H79: 4 | I79: 6
A80: 7308400000 | B80: GBP | C80: 0.2 | D80: TEMPORARY IMPORT - 53 00 D23 | E80: stand | F80: China | G80: 10 | H80: 4 | I80: 6
A81: 8539520000 | B81: GBP | C81: 52.5 | D81: TEMPORARY IMPORT - 53 00 D23 | E81: LED lamp | F81: China | G81: 35 | H81: 4 | I81: 6
A82: 8210000000 | B82: GBP | C82: 79 | D82: TEMPORARY IMPORT - 53 00 D23 | E82: Pepper Grinder | F82: China | G82: 79 | H82: 4 | I82: 6
A83: 7308909890 | B83: GBP | C83: 7 | D83: TEMPORARY IMPORT - 53 00 D23 | E83: Showing stand | F83: China | G83: 1 | H83: 10 | I83: 20
A84: 9019101000 | B84: GBP | C84: 262.34 | D84: TEMPORARY IMPORT - 53 00 D23 | E84: Massage chair host | F84: China | G84: 29 | H84: 127 | I84: 142
A85: 7019900050 | B85: GBP | C85: 1.5 | D85: TEMPORARY IMPORT - 53 00 D23 | E85: Wrapping film | F85: China | G85: 1 | H85: 9 | I85: 10
A86: 4901990000 | B86: GBP | C86: 18 | D86: TEMPORARY IMPORT - 53 00 D23 | E86: book | F86: China | G86: 265 | H86: 18 | I86: 20
A87: 8538901100 | B87: GBP | C87: 21.57 | D87: TEMPORARY IMPORT - 53 00 D23 | E87: Driver board | F87: China | G87: 14 | H87: 54 | I87: 60
A88: 8501109960 | B88: GBP | C88: 8.52 | D88: TEMPORARY IMPORT - 53 00 D23 | E88: Switching Mode Power Supply | F88: China | G88: 5 | H88: 33 | I88: 36.7
A89: 3923900000 | B89: GBP | C89: 2.5 | D89: TEMPORARY IMPORT - 53 00 D23 | E89: Packaging tape | F89: China | G89: 1 | H89: 9 | I89: 10
A90: 5903109000 | B90: GBP | C90: 8 | D90: TEMPORARY IMPORT - 53 00 D23 | E90: Massage chair dust cover | F90: China | G90: 8 | H90: 9 | I90: 10
A91: 7319901000 | B91: GBP | C91: 0.3 | D91: TEMPORARY IMPORT - 53 00 D23 | E91: Stapler | F91: China | G91: 2 | H91: 9 | I91: 10
A92: 4818201000 | B92: GBP | C92: 0.5 | D92: TEMPORARY IMPORT - 53 00 D23 | E92: Tissue paper | F92: China | G92: 5 | H92: 9 | I92: 10
A93: 4202221000 | B93: GBP | C93: 12.5 | D93: TEMPORARY IMPORT - 53 00 D23 | E93: Handbag | F93: China | G93: 50 | H93: 9 | I93: 10
A94: 7302900000 | B94: GBP | C94: 1.2 | D94: TEMPORARY IMPORT - 53 00 D23 | E94: Data rack | F94: China | G94: 1 | H94: 9 | I94: 10
A95: 4811412000 | B95: GBP | C95: 0.72 | D95: TEMPORARY IMPORT - 53 00 D23 | E95: Transparent tape | F95: China | G95: 6 | H95: 24 | I95: 25
A96: 5907000090 | B96: GBP | C96: 18 | D96: TEMPORARY IMPORT - 53 00 D23 | E96: Canvas | F96: China | G96: 12 | H96: 10 | I96: 12

Sheet Permanent
A1: HS Code | B1: CUR | C1: Total Value | D1: CPC | E1: Description | F1: COO | G1: QTY | H1: NETT | I1: GROSS

Sheet Giveaways
A1: HS Code | B1: CUR | C1: Total Value | D1: CPC | E1: Description | F1: COO | G1: QTY | H1: NETT | I1: GROSS

Sheet Odoo Import
A1: x_studio_customs_record_id | B1: x_studio_sales_order_id | C1: x_name | D1: x_studio_currency_id | E1: x_studio_total_cost | F1: x_studio_cpc | G1: x_studio_description | H1: x_studio_country_of_origin | I1: x_studio_quantity | J1: x_studio_nett_weight_kgs | K1: x_studio_gross_weight_kgs
C2: 8211100000 | D2: GBP | E2: 24 | F2: PERMANENT IMPORT - 40 00 000 | G2: Kitchen knife set | H2: China | I2: 16 | J2: 18 | K2: 20
C3: 8213000000 | D3: GBP | E3: 15 | F3: PERMANENT IMPORT - 40 00 000 | G3: Kitchen scissors | H3: England | I3: 30 | J3: 18 | K3: 20
C4: 8211910000 | D4: GBP | E4: 2 | F4: PERMANENT IMPORT - 40 00 000 | G4: Steak knife | H4: China | I4: 2 | J4: 18 | K4: 20

Sheet Backup
B1: INSERT COMPANY HEADER & ADDRESS HERE
B8: COMMERCIAL INVOICE & PACKING LIST
B11: Shipper Information | I11: Consignee | N11: Event
B12: Company Name:
B13: Address:
B15: E-mail: | N15: Hall / Stand Number
B16: Exhibition Information
B17: Representitive at Exhibition:
B18: Contact Number: | N18: Invoice No:
B19: Delivery Date to Stand: | I19: UK EORI No:
B20: Delivery Time to Stand: | I20: Shipper EORI No for Return shipping:
B22: The invoiced goods are of origin as stated in the Country of Origin field listed below and are intended for use at the event only. We certify that the information given above is true and correct, and that prices indicated represent the fair market value for the items described herein.
B27: Company Name/Stamp | F27: Name of Signatory in BLOCK LETTERS | K27: Signature
F29: Total Weights: | G29: =SUM(G33:G330238) -> 1594.03 | H29: =SUM(H33:H330238) -> 1971.44 | O29: Total Value: | P29: =SUM(P33:P62235) -> 2780.11
B31: Pieces | C31: Dimensions in cms | F31: CBM | G31: Net Wt KGS | H31: Gross Wt KGS | I31: HS Codes | J31: Description of goods | K31: Quantity | L31: Country of Origin | M31: Currency | N31: CPC | O31: CIF value
C32: Length | D32: Width | E32: Height | O32: Unit value | P32: Total value
C33: 120 | D33: 80 | E33: 150 | F33: =C33*D33*E33/1000000 -> 1.44 | G33: 18 | H33: 20 | I33: 8211100000 | J33: Kitchen knife set | K33: 16 | L33: China | M33: GBP | N33: Temporary Import - 53 00 D23 | O33: 1.5 | P33: =SUM(O33*K33) -> 24
C34: 40 | D34: 41 | E34: 40 | F34: =C34*D34*E34/1000000 -> 0.0656 | G34: 18 | H34: 20 | I34: 8213000000 | J34: Kitchen scissors | K34: 30 | L34: Germany | M34: GBP | N34: Temporary Import - 53 00 D23 | O34: 0.5 | P34: 15
C35: 40 | D35: 41 | E35: 40 | F35: 0.0656 | G35: 18 | H35: 20 | I35: 8211910000 | J35: Steak knife | K35: 2 | L35: Japan | M35: GBP | N35: Permanent Import - 40 00 000 | O35: 1 | P35: 2
C36: 40 | D36: 41 | E36: 40 | F36: 0.0656 | G36: 18 | H36: 20 | I36: 8205598000 | J36: Office stapler | K36: 2 | L36: China | M36: GBP | N36: Permanent Import - 40 00 000 | O36: 0.2 | P36: 0.4
C37: 40 | D37: 41 | E37: 40 | F37: 0.0656 | G37: 18 | H37: 20 | I37: 4817200000 | J37: Name card | K37: 500 | L37: Germany | M37: GBP | N37: Giveaways - 40 00 C32 | O37: 0.01 | P37: 5
C38: 40 | D38: 41 | E38: 40 | F38: 0.0656 | G38: 18 | H38: 20 | I38: 4911101000 | J38: Catalogue | K38: 40 | L38: Japan | M38: GBP | N38: Giveaways - 40 00 C32 | O38: 0.1 | P38: 4
C39: 40 | D39: 41 | E39: 40 | F39: 0.0656 | G39: 18 | H39: 20 | I39: 9608600000 | J39: Pen | K39: 2 | L39: China | M39: GBP | N39: Temporary Import - 53 00 D23 | O39: 0.05 | P39: 0.1
C40: 40 | D40: 41 | E40: 40 | F40: 0.0656 | G40: 18 | H40: 20 | I40: 4820103000 | J40: Notebooks | K40: 2 | L40: Germany | M40: GBP | N40: Temporary Import - 53 00 D23 | O40: 0.05 | P40: 0.1
C41: 40 | D41: 41 | E41: 40 | F41: 0.0656 | G41: 18 | H41: 20 | I41: 8470100000 | J41: Desktop calculator | K41: 2 | L41: Japan | M41: GBP | N41: Permanent Import - 40 00 000 | O41: 0.5 | P41: 1
C42: 40 | D42: 41 | E42: 40 | F42: 0.0656 | G42: 18 | H42: 20 | I42: 8213000000 | J42: Kitchen scissors | K42: 73 | L42: China | M42: GBP | N42: Permanent Import - 40 00 000 | O42: 0.5 | P42: 36.5
C43: 40 | D43: 42 | E43: 42 | F43: 0.07056 | G43: 18 | H43: 20 | I43: 8215201000 | J43: Cutlery set | K43: 6 | L43: Germany | M43: GBP | N43: Giveaways - 40 00 C32 | O43: 1 | P43: 6
C44: 40 | D44: 42 | E44: 42 | F44: 0.07056 | G44: 18 | H44: 20 | I44: 8521102000 | J44: Transparent tape | K44: 2 | L44: Japan | M44: GBP | N44: Giveaways - 40 00 C32 | O44: 0.1 | P44: 0.2
C45: 40 | D45: 42 | E45: 42 | F45: 0.07056 | G45: 18 | H45: 20 | I45: 8536691000 | J45: Power strip | K45: 1 | L45: China | M45: GBP | N45: Temporary Import - 53 00 D23 | O45: 0.5 | P45: 0.5
C46: 40 | D46: 42 | E46: 42 | F46: 0.07056 | G46: 18 | H46: 20 | I46: 3924900090 | J46: Hanger | K46: 180 | L46: Germany | M46: GBP | N46: Temporary Import - 53 00 D23 | O46: 0.01 | P46: 1.8
C47: 40 | D47: 42 | E47: 42 | F47: 0.07056 | G47: 13 | H47: 16 | I47: 8205510000 | J47: knife sharpener | K47: 29 | L47: Japan | M47: GBP | N47: Permanent Import - 40 00 000 | O47: 1 | P47: 29
C48: 40 | D48: 45 | E48: 45 | F48: 0.081 | G48: 13 | H48: 16 | I48: 8205510000 | J48: sharpening steel | K48: 3 | L48: China | M48: GBP | N48: Permanent Import - 40 00 000 | O48: 1 | P48: 3
C49: 40 | D49: 45 | E49: 45 | F49: 0.081 | G49: 26.5 | H49: 28.5 | I49: 4911109000 | J49: sample book | K49: 200 | L49: Germany | M49: GBP | N49: Giveaways - 40 00 C32 | O49: 0.1 | P49: 20
C50: 40 | D50: 45 | E50: 45 | F50: 0.081 | G50: 26.5 | H50: 28.5 | I50: 8509800000 | J50: electric knife sharpener | K50: 3 | L50: Japan | M50: GBP | N50: Giveaways - 40 00 C32 | O50: 2 | P50: 6
C51: 40 | D51: 45 | E51: 45 | F51: 0.081 | G51: 26.5 | H51: 28.5 | I51: 8205510000 | J51: knife sharpener | K51: 10 | L51: China | M51: GBP | N51: Temporary Import - 53 00 D23 | O51: 1 | P51: 10
C52: 40 | D52: 45 | E52: 45 | F52: 0.081 | G52: 26.5 | H52: 28.5 | I52: 6804100000 | J52: Whetstone | K52: 7 | L52: Germany | M52: GBP | N52: Temporary Import - 53 00 D23 | O52: 2 | P52: 14
C53: 40 | D53: 45 | E53: 45 | F53: 0.081 | G53: 18.16 | H53: 19.16 | I53: 8211100000 | J53: Kitchen Knife Set | K53: 3 | L53: Japan | M53: GBP | N53: Permanent Import - 40 00 000 | O53: 3 | P53: 9
C54: 40 | D54: 39 | E54: 20 | F54: 0.0312 | G54: 18.16 | H54: 19.16 | I54: 8205510000 | J54: Bamboo Knife Holder | K54: 8 | L54: China | M54: GBP | N54: Permanent Import - 40 00 000 | O54: 4 | P54: 32
C55: 40 | D55: 39 | E55: 20 | F55: 0.0312 | G55: 11.15 | H55: 12.15 | I55: 8211100000 | J55: Kitchen Knife Set | K55: 6 | L55: Germany | M55: GBP | N55: Giveaways - 40 00 C32 | O55: 3 | P55: 18
C56: 40 | D56: 26.5 | E56: 38.3 | F56: 0.040598 | G56: 9 | H56: 11.68 | I56: 9701220000 | J56: CHRISTMAS DECORATION | K56: 23 | L56: Japan | M56: GBP | N56: Giveaways - 40 00 C32 | O56: 1.5 | P56: 34.5
C57: 40 | D57: 38 | E57: 63 | F57: 0.09576 | G57: 5.2 | H57: 7.38 | I57: 9701220000 | J57: CHRISTMAS DECORATION | K57: 15 | L57: China | M57: GBP | N57: Temporary Import - 53 00 D23 | O57: 1.5 | P57: 22.5
C58: 40 | D58: 34.5 | E58: 50 | F58: 0.069 | G58: 8.3 | H58: 10.3 | I58: 9701220000 | J58: CHRISTMAS DECORATION | K58: 16 | L58: Germany | M58: GBP | N58: Temporary Import - 53 00 D23 | O58: 1.5 | P58: 24
C59: 40 | D59: 37 | E59: 63 | F59: 0.09324 | G59: 4 | H59: 5.5 | I59: 9701220000 | J59: CHRISTMAS DECORATION | K59: 7 | L59: Japan | M59: GBP | N59: Permanent Import - 40 00 000 | O59: 1.5 | P59: 10.5
C60: 40 | D60: 37 | E60: 53 | F60: 0.07844 | G60: 9.4 | H60: 11.4 | I60: 9701220000 | J60: CHRISTMAS DECORATION | K60: 12 | L60: China | M60: GBP | N60: Permanent Import - 40 00 000 | O60: 1.5 | P60: 18
C61: 40 | D61: 38 | E61: 57 | F61: 0.08664 | G61: 8 | H61: 10 | I61: 9701220000 | J61: CHRISTMAS DECORATION | K61: 12 | L61: Germany | M61: GBP | N61: Giveaways - 40 00 C32 | O61: 1.5 | P61: 18
C62: 40 | D62: 38 | E62: 57 | F62: 0.08664 | G62: 5.2 | H62: 6.7 | I62: 9701220000 | J62: CHRISTMAS DECORATION | K62: 42 | L62: Japan | M62: GBP | N62: Giveaways - 40 00 C32 | O62: 1.5 | P62: 63
C63: 40 | D63: 52 | E63: 60 | F63: 0.1248 | G63: 5.2 | H63: 7.45 | I63: 9701220000 | J63: CHRISTMAS DECORATION | K63: 32 | L63: China | M63: GBP | N63: Temporary Import - 53 00 D23 | O63: 1.5 | P63: 48
C64: 40 | D64: 52 | E64: 60 | F64: 0.1248 | G64: 1.65 | H64: 4.73 | I64: 9505101000 | J64: GR4108JSZ-240W-50L Desc:9ft Pine Garland with cones, berries,50 Lights | K64: 1 | L64: Germany | M64: GBP | N64: Temporary Import - 53 00 D23 | O64: 5 | P64: 5
C65: 40 | D65: 33.02 | E65: 63.5 | F65: 0.0838708 | G65: 1.82 | H65: 4.73 | I65: 9505101000 | J65: WB4024JSZ-180W-50L Desc: 24Inch Pine Wreath with cones, berries, 50 Lights | K65: 1 | L65: Japan | M65: GBP | N65: Permanent Import - 40 00 000 | O65: 5 | P65: 5
C66: 40 | D66: 33.02 | E66: 63.5 | F66: 0.0838708 | G66: 9.53 | H66: 12.1 | I66: 9505101000 | J66: TB4090JSZ-857W-250L Desc: 7.5FT*43" Tree with Cones, Berries, 250 Lights 节节松树 | K66: 1 | L66: China | M66: GBP | N66: Permanent Import - 40 00 000 | O66: 15 | P66: 15
C67: 50 | D67: 31.75 | E67: 37.465 | F67: 0.0594756875 | G67: 9.47 | H67: 12.08 | I67: 9505101000 | J67: 7.5FT*43" Frosted Tree with PE, 250 Lights (7.5尺植绒树） | K67: 1 | L67: Germany | M67: GBP | N67: Giveaways - 40 00 C32 | O67: 15 | P67: 15
C68: 50 | D68: 31.75 | E68: 37.465 | F68: 0.0594756875 | G68: 5.52 | H68: 6.72 | I68: 9505101000 | J68: DD24720SZ-458F-150L Desc: 6FT*24" Frosted Pop Up Tree with cone, berries,150 Lights 伸缩树 | K68: 1 | L68: Japan | M68: GBP | N68: Giveaways - 40 00 C32 | O68: 15 | P68: 15
C69: 63.5 | D69: 33.02 | E69: 63.5 | F69: 0.133144895 | G69: 3.83 | H69: 5.78 | I69: 9505101000 | J69: 6FT*32" Warm Gold Tinsel Tree with 150 Lights （电镀料树） | K69: 1 | L69: China | M69: GBP | N69: Temporary Import - 53 00 D23 | O69: 12 | P69: 12
C70: 50 | D70: 30.48 | E70: 31.75 | F70: 0.048387 | G70: 0.94 | H70: 1.44 | I70: 9505101000 | J70: TP4036C4CE-135F 3FT Flocked Pencil tinsel tree with 135tips. Barbie Pink #3尺植绒树芭比粉 | K70: 1 | L70: Germany | M70: GBP | N70: Temporary Import - 53 00 D23 | O70: 2.6 | P70: 2.6
C71: 50 | D71: 16.51 | E71: 20.32 | F71: 0.01677416 | G71: 0.94 | H71: 1.44 | I71: 9505101000 | J71: TP4036C4CE-135F 3FT Flocked Pencil tinsel tree with 135tips. Turquoise 3尺植绒树浅蓝 | K71: 1 | L71: Japan | M71: GBP | N71: Permanent Import - 40 00 000 | O71: 2.6 | P71: 2.6
C72: 50 | D72: 16.51 | E72: 20.32 | F72: 0.01677416 | G72: 0.94 | H72: 1.44 | I72: 9505101000 | J72: TP4036C4CE-135F 3FT Flocked Pencil tinsel tree with 135tips. Light Pink 3尺植绒树浅粉 | K72: 1 | L72: China | M72: GBP | N72: Permanent Import - 40 00 000 | O72: 2.6 | P72: 2.6
C73: 50 | D73: 16.51 | E73: 20.32 | F73: 0.01677416 | G73: 0.94 | H73: 1.44 | I73: 9505101000 | J73: TP4036C4CE-135F 3FT Flocked Pencil tinsel tree with 135tips. Purple 3尺植绒树浅紫 | K73: 1 | L73: Germany | M73: GBP | N73: Giveaways - 40 00 C32 | O73: 2.6 | P73: 2.6
C74: 50 | D74: 16.51 | E74: 20.32 | F74: 0.01677416 | G74: 1.94 | H74: 2.65 | I74: 9505101000 | J74: TP4072C0YE-260-100L 6ft*18" Warm Gold pencil tree with 100 Lights （6尺暖金铅笔树加灯） | K74: 1 | L74: Japan | M74: GBP | N74: Giveaways - 40 00 C32 | O74: 8 | P74: 8
C75: 50 | D75: 20.32 | E75: 22.86 | F75: 0.02322576 | G75: 1.89 | H75: 2.6 | I75: 9505101000 | J75: TP4072C0YE-260-100L 6ft*18" Silver pencil tree with 100 Lights | K75: 1 | L75: China | M75: GBP | N75: Temporary Import - 53 00 D23 | O75: 8 | P75: 8
C76: 50 | D76: 20.32 | E76: 22.86 | F76: 0.02322576 | G76: 2.75 | H76: 8.96 | I76: 9505101000 | J76: TP4084-312-150L 7FT*20" Pencil Tree with 150 Lights | K76: 1 | L76: Germany | M76: GBP | N76: Temporary Import - 53 00 D23 | O76: 8 | P76: 8
C77: 50 | D77: 31.75 | E77: 37.465 | F77: 0.0594756875 | G77: 3.51 | H77: 8.96 | I77: 9505101000 | J77: TP4084-312F-150L 7FT*20" Frosted Pencil tree with 150 Lights | K77: 1 | L77: Japan | M77: GBP | N77: Permanent Import - 40 00 000 | O77: 8 | P77: 8
C78: 50 | D78: 31.75 | E78: 37.465 | F78: 0.0594756875 | G78: 0.8 | H78: 1.3 | I78: 9505101000 | J78: 2ft tinsel warm gold pencil tree | K78: 1 | L78: China | M78: GBP | N78: Permanent Import - 40 00 000 | O78: 1.5 | P78: 1.5
C79: 50 | D79: 31.75 | E79: 20.32 | F79: 0.032258 | G79: 0.8 | H79: 1.3 | I79: 9505101000 | J79: 3ft tinsel warm gold pencil tree | K79: 1 | L79: Germany | M79: GBP | N79: Giveaways - 40 00 C32 | O79: 2.2 | P79: 2.2
C80: 50 | D80: 31.75 | E80: 21.32 | F80: 0.0338455 | G80: 1.77 | H80: 2.82 | I80: 9505101000 | J80: 5FT*15" Silver Pop Up Tree with balls, 100 lights (5尺*15"银色吊吊树） | K80: 1 | L80: Japan | M80: GBP | N80: Giveaways - 40 00 C32 | O80: 9.8 | P80: 9.8
C81: 50.8 | D81: 37.465 | E81: 33.02 | F81: 0.06284439044 | G81: 2.01 | H81: 3.01 | I81: 9505101000 | J81: 5FT*15" Green Pop Up Tree with balls, 100 lights (5尺*15绿色吊吊树） | K81: 1 | L81: China | M81: GBP | N81: Temporary Import - 53 00 D23 | O81: 9.8 | P81: 9.8
C82: 50.8 | D82: 37.465 | E82: 33.02 | F82: 0.06284439044 | G82: 2.45 | H82: 3.35 | I82: 9505101000 | J82: 6FT*18" Dark Bule pop up tree with 100 balls, 100 Lights | K82: 1 | L82: Germany | M82: GBP | N82: Temporary Import - 53 00 D23 | O82: 8 | P82: 8
C83: 50.8 | D83: 33.02 | E83: 50.8 | F83: 0.0852127328 | G83: 2.56 | H83: 3.44 | I83: 9505101000 | J83: 6FT*18" Burgundy pop up tree with 100 balls, 100 Lights | K83: 1 | L83: Japan | M83: GBP | N83: Permanent Import - 40 00 000 | O83: 8 | P83: 8
C84: 50.8 | D84: 33.02 | E84: 50.8 | F84: 0.0852127328 | G84: 2.41 | H84: 3.29 | I84: 9505101000 | J84: 6FT*18" Dark Green pop up tree with 100 balls, 100 Lights | K84: 1 | L84: China | M84: GBP | N84: Permanent Import - 40 00 000 | O84: 8 | P84: 8
C85: 50.8 | D85: 33.02 | E85: 50.8 | F85: 0.0852127328 | G85: 3.63 | H85: 4.86 | I85: 9505101000 | J85: 6FT*26" Ribbon Pop Up Tree with cones, Bows ,100 Lights | K85: 1 | L85: Germany | M85: GBP | N85: Giveaways - 40 00 C32 | O85: 8 | P85: 8
C86: 63.5 | D86: 33.02 | E86: 63.5 | F86: 0.133144895 | G86: 1.56 | H86: 2.62 | I86: 9505101000 | J86: 3FT*13" Ribbon Pop Up tree with cones, Bows,35Lights | K86: 1 | L86: Japan | M86: GBP | N86: Giveaways - 40 00 C32 | O86: 8.6 | P86: 8.6
C87: 50.8 | D87: 37.465 | E87: 33.02 | F87: 0.06284439044 | G87: 1.56 | H87: 2.62 | I87: 9505101000 | J87: 24"bucket tree with balls | K87: 1 | L87: China | M87: GBP | N87: Temporary Import - 53 00 D23 | O87: 2.2 | P87: 2.2
C88: 63.5 | D88: 33.02 | E88: 33.02 | F88: 0.0692353454 | G88: 1.56 | H88: 2.62 | I88: 9505101000 | J88: 18"Bucket tree with balls(green,silver,opal) | K88: 3 | L88: Germany | M88: GBP | N88: Temporary Import - 53 00 D23 | O88: 1.7 | P88: 5.1
C89: 63.5 | D89: 33.02 | E89: 33.02 | F89: 0.0692353454 | G89: 1.56 | H89: 2.62 | I89: 9505101000 | J89: 18" small dots pop up tree(silver with multi color dots,dark green,green with multi color dots,opal/red,dark blue,burgundy,warm gold) | K89: 7 | L89: Japan | M89: GBP | N89: Permanent Import - 40 00 000 | O89: 1.4 | P89: 9.8
C90: 63.5 | D90: 33.02 | E90: 33.02 | F90: 0.0692353454 | G90: 2.23 | H90: 3.11 | I90: 9505101000 | J90: Christmas Decoration 3D character( 3D Dog, 3D snowman head,3D Sled,3D snowman,3D Santa,3D Penguin) | K90: 4 | L90: China | M90: GBP | N90: Permanent Import - 40 00 000 | O90: 1.7 | P90: 6.8
C91: 50.8 | D91: 33.02 | E91: 33.02 | F91: 0.05538827632 | G91: 2.23 | H91: 3.11 | I91: 9505101000 | J91: #Halloween Decoration 3D character(3D Cat,3D boot) | K91: 4 | L91: Germany | M91: GBP | N91: Giveaways - 40 00 C32 | O91: 1.7 | P91: 6.8
C92: 50.8 | D92: 33.02 | E92: 33.02 | F92: 0.05538827632 | G92: 2.23 | H92: 3.11 | I92: 9505101000 | J92: Christmas Decoration 2D character( 2D Snowman,2D round ornament,2D Tree, 2D candycane) | K92: 4 | L92: Japan | M92: GBP | N92: Giveaways - 40 00 C32 | O92: 1.5 | P92: 6
C93: 50.8 | D93: 33.02 | E93: 33.02 | F93: 0.05538827632 | G93: 2.23 | H93: 3.11 | I93: 9505101000 | J93: Halloween Decoration 3D character(3D Tarantula,3D Cat,3D boot) | K93: 3 | L93: China | M93: GBP | N93: Temporary Import - 53 00 D23 | O93: 1.7 | P93: 5.1
C94: 50.8 | D94: 33.02 | E94: 33.02 | F94: 0.05538827632 | G94: 11 | H94: 15 | I94: 6911100090 | J94: PORCELAIN TABLEWARE | K94: 17 | L94: Germany | M94: GBP | N94: Temporary Import - 53 00 D23 | O94: 2.6 | P94: 44.2
C95: 36 | D95: 36 | E95: 36 | F95: 0.046656 | G95: 12 | H95: 15 | I95: 6911100090 | J95: PORCELAIN TABLEWARE | K95: 18 | L95: Japan | M95: GBP | N95: Permanent Import - 40 00 000 | O95: 2.6 | P95: 46.8
C96: 36 | D96: 36 | E96: 36 | F96: 0.046656 | G96: 10 | H96: 14 | I96: 6911100090 | J96: PORCELAIN TABLEWARE | K96: 30 | L96: China | M96: GBP | N96: Permanent Import - 40 00 000 | O96: 2 | P96: 60
C97: 55 | D97: 36 | E97: 30 | F97: 0.0594 | G97: 9 | H97: 13 | I97: 6911100090 | J97: PORCELAIN TABLEWARE | K97: 17 | L97: Germany | M97: GBP | N97: Giveaways - 40 00 C32 | O97: 2.6 | P97: =SUM(O97*K97) -> 44.2
C98: 36 | D98: 36 | E98: 36 | F98: 0.046656 | G98: 9 | H98: 13.5 | I98: 6911100090 | J98: PORCELAIN TABLEWARE | K98: 30 | L98: Japan | M98: GBP | N98: Giveaways - 40 00 C32 | O98: 2 | P98: 60
C99: 55 | D99: 36 | E99: 30 | F99: 0.0594 | G99: 8.5 | H99: 12.5 | I99: 6911100090 | J99: PORCELAIN TABLEWARE | K99: 28 | L99: China | M99: GBP | N99: Temporary Import - 53 00 D23 | O99: 2 | P99: 56
C100: 55 | D100: 36 | E100: 30 | F100: 0.0594 | G100: 9 | H100: 13 | I100: 6911100090 | J100: PORCELAIN TABLEWARE | K100: 30 | L100: Germany | M100: GBP | N100: Temporary Import - 53 00 D23 | O100: 2 | P100: 60
C101: 55 | D101: 36 | E101: 30 | F101: 0.0594 | G101: 11 | H101: 15 | I101: 6911100090 | J101: PORCELAIN TABLEWARE | K101: 16 | L101: Japan | M101: GBP | N101: Permanent Import - 40 00 000 | O101: 2.6 | P101: 41.6
C102: 55 | D102: 36 | E102: 30 | F102: 0.0594 | G102: 7 | H102: 9.5 | I102: 6911100090 | J102: PORCELAIN TABLEWARE | K102: 23 | L102: China | M102: GBP | N102: Permanent Import - 40 00 000 | O102: 2 | P102: 46
C103: 55 | D103: 36 | E103: 30 | F103: 0.0594 | G103: 5 | H103: 7.5 | I103: 6911100090 | J103: PORCELAIN TABLEWARE | K103: 18 | L103: Germany | M103: GBP | N103: Giveaways - 40 00 C32 | O103: 2 | P103: 36
C104: 36 | D104: 36 | E104: 36 | F104: 0.046656 | G104: 5 | H104: 7.5 | I104: 9609901000 | J104: CRAYONS | K104: 20 | L104: Japan | M104: GBP | N104: Giveaways - 40 00 C32 | O104: 0.5 | P104: 10
C105: 72 | D105: 56 | E105: 62 | F105: 0.249984 | G105: 5 | H105: 7.5 | I105: 3407000000 | J105: DOUGH | K105: 20 | L105: China | M105: GBP | N105: Temporary Import - 53 00 D23 | O105: 0.5 | P105: 10
C106: 72 | D106: 56 | E106: 62 | F106: 0.249984 | G106: 5 | H106: 7.5 | I106: 3213100000 | J106: WATER COLOR | K106: 20 | L106: Germany | M106: GBP | N106: Temporary Import - 53 00 D23 | O106: 0.5 | P106: 10
C107: 72 | D107: 56 | E107: 62 | F107: 0.249984 | G107: 5 | H107: 7.5 | I107: 4911109000 | J107: BROCHURE | K107: 29 | L107: Japan | M107: GBP | N107: Permanent Import - 40 00 000 | O107: 0.5 | P107: 14.5
C108: 72 | D108: 56 | E108: 62 | F108: 0.249984 | G108: 5 | H108: 7.5 | I108: 3924100090 | J108: DISPOSABLE TABLEWARE | K108: 215 | L108: China | M108: GBP | N108: Permanent Import - 40 00 000 | O108: 0.03 | P108: 6.45
C109: 72 | D109: 56 | E109: 62 | F109: 0.249984 | G109: 5 | H109: 7.5 | I109: 4911109000 | J109: POSTER | K109: 200 | L109: Germany | M109: GBP | N109: Giveaways - 40 00 C32 | O109: 0.03 | P109: 6
C110: 72 | D110: 56 | E110: 62 | F110: 0.249984 | G110: 5 | H110: 7.5 | I110: 3213100000 | J110: WATER COLOR | K110: 35 | L110: Japan | M110: GBP | N110: Giveaways - 40 00 C32 | O110: 0.38 | P110: 13.3
C111: 72 | D111: 56 | E111: 62 | F111: 0.249984 | G111: 5 | H111: 7.5 | I111: 3407000000 | J111: DOUGH | K111: 40 | L111: China | M111: GBP | N111: Temporary Import - 53 00 D23 | O111: 0.38 | P111: 15.2
C112: 72 | D112: 56 | E112: 62 | F112: 0.249984 | G112: 5 | H112: 7.5 | I112: 3213100000 | J112: WATER COLOR | K112: 22 | L112: Germany | M112: GBP | N112: Temporary Import - 53 00 D23 | O112: 0.38 | P112: 8.36
C113: 54 | D113: 56 | E113: 62 | F113: 0.187488 | G113: 5 | H113: 7.5 | I113: 3407000000 | J113: DOUGH | K113: 22 | L113: Japan | M113: GBP | N113: Permanent Import - 40 00 000 | O113: 0.3 | P113: 6.6
C114: 54 | D114: 56 | E114: 62 | F114: 0.187488 | G114: 5 | H114: 7.5 | I114: 3926400000 | J114: POLYRESIN CRAFTS | K114: 10 | L114: China | M114: GBP | N114: Permanent Import - 40 00 000 | O114: 4 | P114: 40
C115: 61 | D115: 40 | E115: 50 | F115: 0.122 | G115: 5 | H115: 7.5 | I115: 3926400000 | J115: POLYRESIN CRAFTS | K115: 25 | L115: Germany | M115: GBP | N115: Giveaways - 40 00 C32 | O115: 2 | P115: 50
C116: 61 | D116: 40 | E116: 50 | F116: 0.122 | G116: 5 | H116: 7.5 | I116: 3926400000 | J116: POLYRESIN CRAFTS | K116: 30 | L116: Japan | M116: GBP | N116: Giveaways - 40 00 C32 | O116: 2 | P116: 60
C117: 61 | D117: 40 | E117: 50 | F117: 0.122 | G117: 5 | H117: 7.5 | I117: 3926400000 | J117: POLYRESIN CRAFTS | K117: 20 | L117: China | M117: GBP | N117: Temporary Import - 53 00 D23 | O117: 2 | P117: 40
C118: 61 | D118: 40 | E118: 50 | F118: 0.122 | G118: 5 | H118: 7.5 | I118: 3926400000 | J118: POLYRESIN CRAFTS | K118: 12 | L118: Germany | M118: GBP | N118: Temporary Import - 53 00 D23 | O118: 4.5 | P118: 54
C119: 61 | D119: 40 | E119: 50 | F119: 0.122 | G119: 5 | H119: 7.5 | I119: 3926400000 | J119: POLYRESIN CRAFTS | K119: 1 | L119: Japan | M119: GBP | N119: Permanent Import - 40 00 000 | O119: 35 | P119: 35
C120: 50 | D120: 42 | E120: 35 | F120: 0.0735 | G120: 5 | H120: 7.5 | I120: 4201000090 | J120: SHEEP COATS | K120: 3 | L120: China | M120: GBP | N120: Permanent Import - 40 00 000 | O120: 3 | P120: 9
C121: 35 | D121: 40 | E121: 50 | F121: 0.07 | G121: 5 | H121: 7.5 | I121: 4201000090 | J121: DOG COATS | K121: 3 | L121: Germany | M121: GBP | N121: Giveaways - 40 00 C32 | O121: 2.5 | P121: 7.5
C122: 35 | D122: 40 | E122: 50 | F122: 0.07 | G122: 5 | H122: 7.5 | I122: 4201000090 | J122: HORSE RUGS | K122: 4 | L122: Japan | M122: GBP | N122: Giveaways - 40 00 C32 | O122: 6 | P122: 24
C123: 35 | D123: 40 | E123: 50 | F123: 0.07 | G123: 5 | H123: 7.5 | I123: 4201000090 | J123: DOG HARNESS | K123: 4 | L123: China | M123: GBP | N123: Temporary Import - 53 00 D23 | O123: 1.5 | P123: 6
C124: 35 | D124: 40 | E124: 50 | F124: 0.07 | G124: 5 | H124: 7.5 | I124: 4201000090 | J124: DOG LEASH | K124: 5 | L124: Germany | M124: GBP | N124: Temporary Import - 53 00 D23 | O124: 1 | P124: 5
C125: 35 | D125: 40 | E125: 50 | F125: 0.07 | G125: 5 | H125: 7.5 | I125: 4911109000 | J125: BOOKLET | K125: 15 | L125: Japan | M125: GBP | N125: Permanent Import - 40 00 000 | O125: 0.1 | P125: 1.5
C126: 35 | D126: 40 | E126: 50 | F126: 0.07 | G126: 5 | H126: 7.5 | I126: 6913100090 | J126: Dog model | K126: 1 | L126: China | M126: GBP | N126: Permanent Import - 40 00 000 | O126: 5 | P126: 5
C127: 35 | D127: 40 | E127: 50 | F127: 0.07 | G127: 5 | H127: 7.5 | I127: 4201000090 | J127: SADDLE PAD | K127: 3 | L127: Germany | M127: GBP | N127: Giveaways - 40 00 C32 | O127: 3 | P127: 9
C128: 35 | D128: 40 | E128: 50 | F128: 0.07 | G128: 5 | H128: 7.5 | I128: 4202921100 | J128: POLYESTER BAG | K128: 4 | L128: Japan | M128: GBP | N128: Giveaways - 40 00 C32 | O128: 2 | P128: 8
C129: 35 | D129: 40 | E129: 50 | F129: 0.07 | G129: 5 | H129: 7.5 | I129: 4202921100 | J129: PU BAG | K129: 5 | L129: China | M129: GBP | N129: Temporary Import - 53 00 D23 | O129: 2 | P129: 10
C130: 35 | D130: 40 | E130: 50 | F130: 0.07 | G130: 5 | H130: 7.5 | I130: 4202921100 | J130: POLYESTER BAG | K130: 10 | L130: Germany | M130: GBP | N130: Temporary Import - 53 00 D23 | O130: 2 | P130: 20
C131: 35 | D131: 40 | E131: 50 | F131: 0.07 | G131: 5 | H131: 7.5 | I131: 4202921100 | J131: CANVAS BAG | K131: 4 | L131: Japan | M131: GBP | N131: Permanent Import - 40 00 000 | O131: 2 | P131: 8
C132: 35 | D132: 40 | E132: 50 | F132: 0.07 | G132: 5 | H132: 7.5 | I132: 4202921100 | J132: PVC BAG | K132: 10 | L132: China | M132: GBP | N132: Permanent Import - 40 00 000 | O132: 2 | P132: 20
C133: 35 | D133: 40 | E133: 50 | F133: 0.07 | G133: 5 | H133: 7.5 | I133: 4202921100 | J133: POLYESTER BAG | K133: 20 | L133: Germany | M133: GBP | N133: Giveaways - 40 00 C32 | O133: 2 | P133: 40
C134: 35 | D134: 40 | E134: 50 | F134: 0.07 | G134: 5 | H134: 7.5 | I134: 4820103000 | J134: Air bubble pad | K134: 100 | L134: Japan | M134: GBP | N134: Giveaways - 40 00 C32 | O134: 0.01 | P134: 1
C135: 35 | D135: 40 | E135: 50 | F135: 0.07 | G135: 5 | H135: 7.5 | I135: 4911109000 | J135: Promotional posters | K135: 1 | L135: China | M135: GBP | N135: Temporary Import - 53 00 D23 | O135: 0.5 | P135: 0.5
C136: 35 | D136: 40 | E136: 50 | F136: 0.07 | G136: 5 | H136: 7.5 | I136: 7610901000 | J136: Display Stand | K136: 1 | L136: Germany | M136: GBP | N136: Temporary Import - 53 00 D23 | O136: 6 | P136: 6
C137: 35 | D137: 40 | E137: 50 | F137: 0.07 | G137: 5 | H137: 7.5 | I137: 7610901000 | J137: Partition | K137: 9 | L137: Japan | M137: GBP | N137: Permanent Import - 40 00 000 | O137: 1 | P137: 9
C138: 35 | D138: 33 | E138: 14 | F138: 0.01617 | G138: 5 | H138: 7.4 | I138: 7610901000 | J138: Partition | K138: 3 | L138: China | M138: GBP | N138: Permanent Import - 40 00 000 | O138: 1 | P138: 3
C139: 35 | D139: 32 | E139: 5 | F139: 0.0056 | G139: 5 | H139: 7.4 | I139: 9403603000 | J139: Roller Pin | K139: 2 | L139: Germany | M139: GBP | N139: Giveaways - 40 00 C32 | O139: 0.5 | P139: 1
C140: 35 | D140: 40 | E140: 50 | F140: 0.07 | G140: 5 | H140: 7.4 | I140: 9403820090 | J140: Bamboo Candy Tray Set | K140: 1 | L140: Japan | M140: GBP | N140: Giveaways - 40 00 C32 | O140: 1 | P140: 1
C141: 35 | D141: 40 | E141: 50 | F141: 0.07 | G141: 5 | H141: 7.4 | I141: 9403820090 | J141: Bamboo Cutting Board | K141: 10 | L141: China | M141: GBP | N141: Temporary Import - 53 00 D23 | O141: 2 | P141: 20
C142: 35 | D142: 40 | E142: 50 | F142: 0.07 | G142: 5 | H142: 7.4 | I142: 9403820090 | J142: Bamboo Cutting Board Set | K142: 7 | L142: Germany | M142: GBP | N142: Temporary Import - 53 00 D23 | O142: 2 | P142: 14
C143: 35 | D143: 40 | E143: 50 | F143: 0.07 | G143: 5 | H143: 7.4 | I143: 9403820090 | J143: Bamboo Utensil Holder | K143: 4 | L143: Japan | M143: GBP | N143: Permanent Import - 40 00 000 | O143: 1.5 | P143: 6
C144: 35 | D144: 40 | E144: 50 | F144: 0.07 | G144: 5 | H144: 7.4 | I144: 9403820090 | J144: Bamboo Utensil Holder Set | K144: 1 | L144: China | M144: GBP | N144: Permanent Import - 40 00 000 | O144: 1.5 | P144: 1.5
C145: 35 | D145: 40 | E145: 50 | F145: 0.07 | G145: 5 | H145: 7.4 | I145: 9403820090 | J145: Bamboo Server | K145: 8 | L145: Germany | M145: GBP | N145: Giveaways - 40 00 C32 | O145: 1 | P145: 8
C146: 35 | D146: 40 | E146: 50 | F146: 0.07 | G146: 5 | H146: 7.4 | I146: 9403820090 | J146: Bamboo Tray Set | K146: 1 | L146: Japan | M146: GBP | N146: Giveaways - 40 00 C32 | O146: 3.5 | P146: 3.5
C147: 35 | D147: 40 | E147: 50 | F147: 0.07 | G147: 5 | H147: 7.4 | I147: 9403820090 | J147: Bamboo Bowl | K147: 1 | L147: China | M147: GBP | N147: Temporary Import - 53 00 D23 | O147: 5 | P147: 5
C148: 35 | D148: 40 | E148: 50 | F148: 0.07 | G148: 5 | H148: 7.4 | I148: 9403820090 | J148: Bamboo Bowl Set | K148: 1 | L148: Germany | M148: GBP | N148: Temporary Import - 53 00 D23 | O148: 5 | P148: 5
C149: 35 | D149: 40 | E149: 50 | F149: 0.07 | G149: 5 | H149: 7.4 | I149: 9403820090 | J149: Bamboo Salt Holder Set | K149: 4 | L149: Japan | M149: GBP | N149: Permanent Import - 40 00 000 | O149: 0.8 | P149: 3.2
C150: 35 | D150: 40 | E150: 50 | F150: 0.07 | G150: 5 | H150: 7.4 | I150: 9403603000 | J150: Wooden Tray | K150: 1 | L150: China | M150: GBP | N150: Permanent Import - 40 00 000 | O150: 3.5 | P150: 3.5
C151: 35 | D151: 40 | E151: 50 | F151: 0.07 | G151: 5 | H151: 7.4 | I151: 9403820090 | J151: Bamboo Candy Tray Set | K151: 1 | L151: Germany | M151: GBP | N151: Giveaways - 40 00 C32 | O151: 1 | P151: 1
C152: 35 | D152: 40 | E152: 50 | F152: 0.07 | G152: 5 | H152: 7.4 | I152: 9403820090 | J152: Bamboo Cutting Board | K152: 12 | L152: Japan | M152: GBP | N152: Giveaways - 40 00 C32 | O152: 2 | P152: 24
C153: 35 | D153: 40 | E153: 50 | F153: 0.07 | G153: 5 | H153: 7.4 | I153: 9403820090 | J153: Bamboo Cutting Board Set | K153: 3 | L153: China | M153: GBP | N153: Temporary Import - 53 00 D23 | O153: 2 | P153: 6
C154: 35 | D154: 40 | E154: 50 | F154: 0.07 | G154: 5 | H154: 7.4 | I154: 9403820090 | J154: Bamboo Utensil Holder Set | K154: 1 | L154: Germany | M154: GBP | N154: Temporary Import - 53 00 D23 | O154: 1.5 | P154: 1.5
C155: 35 | D155: 40 | E155: 50 | F155: 0.07 | G155: 5 | H155: 7.4 | I155: 9403820090 | J155: Bamboo Server | K155: 2 | L155: Japan | M155: GBP | N155: Permanent Import - 40 00 000 | O155: 1 | P155: 2
C156: 35 | D156: 40 | E156: 50 | F156: 0.07 | G156: 5 | H156: 7.4 | I156: 9403820090 | J156: Cheese Knife | K156: 14 | L156: China | M156: GBP | N156: Permanent Import - 40 00 000 | O156: 0.5 | P156: 7
C157: 35 | D157: 40 | E157: 50 | F157: 0.07 | G157: 5 | H157: 7.4 | I157: 9403820090 | J157: Bamboo Candy Tray Set | K157: 1 | L157: Germany | M157: GBP | N157: Giveaways - 40 00 C32 | O157: 1 | P157: 1
C158: 35 | D158: 40 | E158: 50 | F158: 0.07 | G158: 5 | H158: 7.4 | I158: 9403820090 | J158: Bamboo Cutting Board | K158: 9 | L158: Japan | M158: GBP | N158: Giveaways - 40 00 C32 | O158: 2 | P158: 18
C159: 35 | D159: 40 | E159: 50 | F159: 0.07 | G159: 5 | H159: 7.4 | I159: 9403820090 | J159: Bamboo Utensil Holder | K159: 6 | L159: China | M159: GBP | N159: Temporary Import - 53 00 D23 | O159: 1.5 | P159: 9
C160: 35 | D160: 40 | E160: 50 | F160: 0.07 | G160: 5 | H160: 7.4 | I160: 9403820090 | J160: Bamboo Pepper Grinder | K160: 4 | L160: Germany | M160: GBP | N160: Temporary Import - 53 00 D23 | O160: 1.5 | P160: 6
C161: 35 | D161: 40 | E161: 50 | F161: 0.07 | G161: 6.4 | H161: 7.4 | I161: 9403820090 | J161: Bamboo Server | K161: 10 | L161: Japan | M161: GBP | N161: Permanent Import - 40 00 000 | O161: 1 | P161: =SUM(O161*K161) -> 10
C162: 35 | D162: 40 | E162: 50 | F162: 0.07 | G162: 6.4 | H162: 7.4 | I162: 9403820090 | J162: Bamboo Bowl | K162: 2 | L162: China | M162: GBP | N162: Permanent Import - 40 00 000 | O162: 5 | P162: 10
C163: 35 | D163: 40 | E163: 50 | F163: 0.07 | G163: 6.4 | H163: 7.4 | I163: 9403603000 | J163: Wooden Pepper Grinder | K163: 3 | L163: Germany | M163: GBP | N163: Giveaways - 40 00 C32 | O163: 2 | P163: 6
C164: 35 | D164: 40 | E164: 50 | F164: 0.07 | G164: 6.4 | H164: 7.4 | I164: 9403820090 | J164: Bamboo Cutting Board | K164: 7 | L164: Japan | M164: GBP | N164: Giveaways - 40 00 C32 | O164: 2 | P164: 14
C165: 35 | D165: 40 | E165: 50 | F165: 0.07 | G165: 6.4 | H165: 7.4 | I165: 9403820090 | J165: Bamboo Utensil Holder | K165: 2 | L165: China | M165: GBP | N165: Temporary Import - 53 00 D23 | O165: 1.5 | P165: 3
C166: 35 | D166: 40 | E166: 50 | F166: 0.07 | G166: 6.4 | H166: 7.4 | I166: 9403820090 | J166: Bamboo Pepper Grinder | K166: 6 | L166: Germany | M166: GBP | N166: Temporary Import - 53 00 D23 | O166: 1.5 | P166: 9
C167: 35 | D167: 40 | E167: 50 | F167: 0.07 | G167: 6.4 | H167: 7.4 | I167: 9403820090 | J167: Bamboo Server | K167: 2 | L167: Japan | M167: GBP | N167: Permanent Import - 40 00 000 | O167: 1 | P167: 2
C168: 35 | D168: 40 | E168: 50 | F168: 0.07 | G168: 6.4 | H168: 7.4 | I168: 9403820090 | J168: Bamboo Tray Set | K168: 1 | L168: China | M168: GBP | N168: Permanent Import - 40 00 000 | O168: 3.5 | P168: 3.5
C169: 35 | D169: 40 | E169: 50 | F169: 0.07 | G169: 6.4 | H169: 7.4 | I169: 9403820090 | J169: Bamboo Bowl | K169: 6 | L169: Germany | M169: GBP | N169: Giveaways - 40 00 C32 | O169: 5 | P169: 30
C170: 35 | D170: 40 | E170: 50 | F170: 0.07 | G170: 6.4 | H170: 7.4 | I170: 9403820090 | J170: Bamboo Bowl Set | K170: 1 | L170: Japan | M170: GBP | N170: Giveaways - 40 00 C32 | O170: 5 | P170: 5
C171: 35 | D171: 40 | E171: 50 | F171: 0.07 | G171: 6.4 | H171: 7.4 | I171: 9403603000 | J171: Wooden Coaster Set | K171: 1 | L171: China | M171: GBP | N171: Temporary Import - 53 00 D23 | O171: 2 | P171: 2
C172: 35 | D172: 40 | E172: 50 | F172: 0.07 | G172: 6.4 | H172: 7.4 | I172: 9403603000 | J172: Wooden Pepper Grinder | K172: 2 | L172: Germany | M172: GBP | N172: Temporary Import - 53 00 D23 | O172: 2 | P172: 4
C173: 35 | D173: 40 | E173: 50 | F173: 0.07 | G173: 6.4 | H173: 7.4 | I173: 9403820090 | J173: Bamboo Cutting Board | K173: 8 | L173: Japan | M173: GBP | N173: Permanent Import - 40 00 000 | O173: 1 | P173: 8
C174: 35 | D174: 40 | E174: 50 | F174: 0.07 | G174: 6.4 | H174: 7.4 | I174: 9403820090 | J174: Bamboo Cutting Board Set | K174: 1 | L174: China | M174: GBP | N174: Permanent Import - 40 00 000 | O174: 2 | P174: 2
C175: 35 | D175: 40 | E175: 50 | F175: 0.07 | G175: 6.4 | H175: 7.4 | I175: 9403820090 | J175: Bamboo Pepper Grinder | K175: 2 | L175: Germany | M175: GBP | N175: Giveaways - 40 00 C32 | O175: 1.5 | P175: 3
C176: 35 | D176: 40 | E176: 50 | F176: 0.07 | G176: 6.4 | H176: 7.4 | I176: 9403820090 | J176: Bamboo Toast Tongs | K176: 1 | L176: Japan | M176: GBP | N176: Giveaways - 40 00 C32 | O176: 0.5 | P176: 0.5
C177: 35 | D177: 40 | E177: 50 | F177: 0.07 | G177: 6.4 | H177: 7.4 | I177: 9403820090 | J177: Bamboo Tray | K177: 2 | L177: China | M177: GBP | N177: Temporary Import - 53 00 D23 | O177: 3.5 | P177: 7
C178: 35 | D178: 40 | E178: 50 | F178: 0.07 | G178: 6.4 | H178: 7.4 | I178: 9403820090 | J178: Bamboo Bowl | K178: 6 | L178: Germany | M178: GBP | N178: Temporary Import - 53 00 D23 | O178: 5 | P178: 30
C179: 35 | D179: 40 | E179: 50 | F179: 0.07 | G179: 6.4 | H179: 7.4 | I179: 9403603000 | J179: Wooden Utensil Holder | K179: 2 | L179: Japan | M179: GBP | N179: Permanent Import - 40 00 000 | O179: 1.8 | P179: 3.6
C180: 35 | D180: 40 | E180: 50 | F180: 0.07 | G180: 6.4 | H180: 7.4 | I180: 6914400000 | J180: Ceramic Utensil Holder | K180: 1 | L180: China | M180: GBP | N180: Permanent Import - 40 00 000 | O180: 1.8 | P180: 1.8
C181: 35 | D181: 40 | E181: 50 | F181: 0.07 | G181: 6.4 | H181: 7.4 | I181: 9403820090 | J181: Bamboo Cutting Board | K181: 10 | L181: Germany | M181: GBP | N181: Giveaways - 40 00 C32 | O181: 2 | P181: 20
C182: 35 | D182: 40 | E182: 50 | F182: 0.07 | G182: 6.4 | H182: 7.4 | I182: 9403820090 | J182: Bamboo Utensil Holder | K182: 1 | L182: Japan | M182: GBP | N182: Giveaways - 40 00 C32 | O182: 1.5 | P182: 1.5
C183: 35 | D183: 40 | E183: 50 | F183: 0.07 | G183: 6.4 | H183: 7.4 | I183: 9403820090 | J183: Bamboo Utensil Holder Set | K183: 1 | L183: China | M183: GBP | N183: Temporary Import - 53 00 D23 | O183: 1.5 | P183: 1.5
C184: 35 | D184: 40 | E184: 50 | F184: 0.07 | G184: 6.4 | H184: 7.4 | I184: 9403820090 | J184: Bamboo Server | K184: 6 | L184: Germany | M184: GBP | N184: Temporary Import - 53 00 D23 | O184: 1 | P184: 6
C185: 35 | D185: 40 | E185: 50 | F185: 0.07 | G185: 6.4 | H185: 7.4 | I185: 9403820090 | J185: Bamboo Tray Set | K185: 2 | L185: Japan | M185: GBP | N185: Permanent Import - 40 00 000 | O185: 3.5 | P185: 7
C186: 35 | D186: 40 | E186: 50 | F186: 0.07 | G186: 6.4 | H186: 7.4 | I186: 9403820090 | J186: Bamboo Bowl | K186: 3 | L186: China | M186: GBP | N186: Permanent Import - 40 00 000 | O186: 2 | P186: 6
C187: 35 | D187: 40 | E187: 50 | F187: 0.07 | G187: 6.4 | H187: 7.4 | I187: 9403603000 | J187: Cutting Board Set | K187: 1 | L187: Germany | M187: GBP | N187: Giveaways - 40 00 C32 | O187: 2.5 | P187: 2.5
C188: 35 | D188: 40 | E188: 50 | F188: 0.07 | G188: 6.4 | H188: 7.4 | I188: 9403603000 | J188: Wooden Cutting Board | K188: 2 | L188: Japan | M188: GBP | N188: Giveaways - 40 00 C32 | O188: 1.8 | P188: 3.6
C189: 35 | D189: 40 | E189: 50 | F189: 0.07 | G189: 6.4 | H189: 7.4 | I189: 9403603000 | J189: Wooden Pepper Grinder | K189: 4 | L189: China | M189: GBP | N189: Temporary Import - 53 00 D23 | O189: 2 | P189: 8
C190: 35 | D190: 40 | E190: 50 | F190: 0.07 | G190: 6.4 | H190: 7.4 | I190: 9403603000 | J190: Wooden Tray | K190: 3 | L190: Germany | M190: GBP | N190: Temporary Import - 53 00 D23 | O190: 3.5 | P190: 10.5
C191: 35 | D191: 40 | E191: 50 | F191: 0.07 | G191: 6.4 | H191: 7.4 | I191: 9403603000 | J191: Wooden Pepper Grinder Set | K191: 1 | L191: Japan | M191: GBP | N191: Permanent Import - 40 00 000 | O191: 2.5 | P191: 2.5
C192: 35 | D192: 40 | E192: 50 | F192: 0.07 | G192: 6.4 | H192: 7.4 | I192: 9403820090 | J192: Bamboo Cutting Board | K192: 10 | L192: China | M192: GBP | N192: Permanent Import - 40 00 000 | O192: 2 | P192: 20
C193: 35 | D193: 40 | E193: 50 | F193: 0.07 | G193: 6.4 | H193: 7.4 | I193: 9403820090 | J193: Bamboo Cutting Board Set | K193: 3 | L193: Germany | M193: GBP | N193: Giveaways - 40 00 C32 | O193: 2 | P193: 6
C194: 35 | D194: 40 | E194: 50 | F194: 0.07 | G194: 6.4 | H194: 7.4 | I194: 9403820090 | J194: Bamboo Tray | K194: 1 | L194: Japan | M194: GBP | N194: Giveaways - 40 00 C32 | O194: 3.5 | P194: 3.5
C195: 35 | D195: 40 | E195: 50 | F195: 0.07 | G195: 6.4 | H195: 7.4 | I195: 9403820090 | J195: Bamboo Tray Set | K195: 1 | L195: China | M195: GBP | N195: Temporary Import - 53 00 D23 | O195: 3.5 | P195: 3.5
C196: 35 | D196: 40 | E196: 50 | F196: 0.07 | G196: 6.4 | H196: 7.4 | I196: 9403603000 | J196: Wooden Cutting Board | K196: 1 | L196: Germany | M196: GBP | N196: Temporary Import - 53 00 D23 | O196: 1.8 | P196: 1.8
C197: 35 | D197: 40 | E197: 50 | F197: 0.07 | G197: 6.4 | H197: 7.4 | I197: 9403603000 | J197: Wooden Turner | K197: 1 | L197: Japan | M197: GBP | N197: Permanent Import - 40 00 000 | O197: 1.5 | P197: 1.5
C198: 35 | D198: 40 | E198: 50 | F198: 0.07 | G198: 6.4 | H198: 7.4 | I198: 9403603000 | J198: Wooden Pepper Grinder | K198: 2 | L198: China | M198: GBP | N198: Permanent Import - 40 00 000 | O198: 2 | P198: 4
C199: 35 | D199: 40 | E199: 50 | F199: 0.07 | G199: 6.4 | H199: 7.4 | I199: 9403603000 | J199: Wooden Server | K199: 12 | L199: Germany | M199: GBP | N199: Giveaways - 40 00 C32 | O199: 1.5 | P199: 18
C200: 35 | D200: 40 | E200: 50 | F200: 0.07 | G200: 6.4 | H200: 7.4 | I200: 9403603000 | J200: Wooden Tray | K200: 4 | L200: Japan | M200: GBP | N200: Giveaways - 40 00 C32 | O200: 3.5 | P200: 14
C201: 35 | D201: 40 | E201: 50 | F201: 0.07 | G201: 6.4 | H201: 7.4 | I201: 9403603000 | J201: Wooden Candy Stand | K201: 1 | L201: China | M201: GBP | N201: Temporary Import - 53 00 D23 | O201: 1 | P201: 1
C202: 35 | D202: 40 | E202: 50 | F202: 0.07 | G202: 6.4 | H202: 7.4 | I202: 9403603000 | J202: Bamboo Cutting Board | K202: 4 | L202: Germany | M202: GBP | N202: Temporary Import - 53 00 D23 | O202: 2 | P202: 8
C203: 35 | D203: 40 | E203: 50 | F203: 0.07 | G203: 6.4 | H203: 7.4 | I203: 9403820090 | J203: Bamboo Cutting Board Set | K203: 1 | L203: Japan | M203: GBP | N203: Permanent Import - 40 00 000 | O203: 2 | P203: 2
C204: 35 | D204: 40 | E204: 50 | F204: 0.07 | G204: 6.4 | H204: 7.4 | I204: 9403820090 | J204: Bamboo Pepper Grinder | K204: 2 | L204: China | M204: GBP | N204: Permanent Import - 40 00 000 | O204: 1.5 | P204: 3
C205: 35 | D205: 40 | E205: 50 | F205: 0.07 | G205: 6.4 | H205: 7.4 | I205: 9403820090 | J205: Bamboo Skewers | K205: 4 | L205: Germany | M205: GBP | N205: Giveaways - 40 00 C32 | O205: 0.5 | P205: 2
C206: 35 | D206: 40 | E206: 50 | F206: 0.07 | G206: 6.4 | H206: 7.4 | I206: 9403820090 | J206: Bamboo Tray Set | K206: 1 | L206: Japan | M206: GBP | N206: Giveaways - 40 00 C32 | O206: 3.5 | P206: 3.5
C207: 35 | D207: 40 | E207: 50 | F207: 0.07 | G207: 6.4 | H207: 7.4 | I207: 9403603000 | J207: Roller Pin | K207: 4 | L207: China | M207: GBP | N207: Temporary Import - 53 00 D23 | O207: 0.5 | P207: 2
C208: 35 | D208: 40 | E208: 50 | F208: 0.07 | G208: 6.4 | H208: 7.4 | I208: 9403603000 | J208: Wooden Turner | K208: 13 | L208: Germany | M208: GBP | N208: Temporary Import - 53 00 D23 | O208: 1.5 | P208: 19.5
C209: 35 | D209: 40 | E209: 50 | F209: 0.07 | G209: 6.4 | H209: 7.4 | I209: 9403603000 | J209: Wooden Pepper Grinder | K209: 2 | L209: Japan | M209: GBP | N209: Permanent Import - 40 00 000 | O209: 2 | P209: 4
C210: 35 | D210: 40 | E210: 50 | F210: 0.07 | G210: 6.4 | H210: 7.4 | I210: 9403603000 | J210: Wooden Server | K210: 2 | L210: China | M210: GBP | N210: Permanent Import - 40 00 000 | O210: 1.5 | P210: 3
C211: 35 | D211: 40 | E211: 50 | F211: 0.07 | G211: 6.4 | H211: 7.4 | I211: 9403820090 | J211: Bamboo Meat Tenderizer | K211: 1 | L211: Germany | M211: GBP | N211: Giveaways - 40 00 C32 | O211: 0.8 | P211: 0.8
C212: 35 | D212: 40 | E212: 50 | F212: 0.07 | G212: 6.4 | H212: 7.4 | I212: 9403820090 | J212: Bamboo Coaster Set | K212: 1 | L212: Japan | M212: GBP | N212: Giveaways - 40 00 C32 | O212: 1.5 | P212: 1.5
C213: 35 | D213: 40 | E213: 50 | F213: 0.07 | G213: 6.4 | H213: 7.4 | I213: 9403820090 | J213: Bamboo Pepper Grinder | K213: 1 | L213: China | M213: GBP | N213: Temporary Import - 53 00 D23 | O213: 1.5 | P213: 1.5
C214: 35 | D214: 40 | E214: 50 | F214: 0.07 | G214: 6.4 | H214: 7.4 | I214: 9403820090 | J214: Bamboo Server | K214: 3 | L214: Germany | M214: GBP | N214: Temporary Import - 53 00 D23 | O214: 1 | P214: 3
C215: 35 | D215: 40 | E215: 50 | F215: 0.07 | G215: 6.4 | H215: 7.4 | I215: 9403820090 | J215: Bamboo Tray | K215: 1 | L215: Japan | M215: GBP | N215: Permanent Import - 40 00 000 | O215: 3.5 | P215: 3.5
C216: 35 | D216: 40 | E216: 50 | F216: 0.07 | G216: 6.4 | H216: 7.4 | I216: 9403820090 | J216: Bamboo Tray Set | K216: 1 | L216: China | M216: GBP | N216: Permanent Import - 40 00 000 | O216: 3.5 | P216: 3.5
... 84 more rows
